Workbook

Sheet DONNES
A1: DECLARATION IR 2015
B2: ANNEE | E2: IMPUTATIONS ET REDUCTIONS
B3: 01-01-2015 AU 31-12-2015
B4: NOM ET PRENOM | C4: ABDO TEST | E4: COTISATION MINIMALE ACQUITTEE | F4: R.PROFESSIONNEL | G4: R.AGRICOLE
E5: -Cotisation Minimale versée | F5: 214145 | G5: 2745
B6: IDENTIFIANT FISCAL | C6: 80422222 | E6: -Date de Versement | F6: 2016-01-31 | G6: 2016-01-31
B7: TAXE PROFESSIONNELLE | C7: 50422222 | E7: -N° Quittance | F7: 12121212 | G7: 21212121
B8: CIN N° : | C8: K6333333
B9: ACTIVITE | C9: TRAVAUX COMPTABLES | E9: IMPOT RETENU A LA SOURCE | F9: MONTANT
B10: ADRESSE | C10: AVE MOHAMED V N° 05 | E10: -IR retenu sur salaire | F10: 65464
B11: VILLE | C11: CASABLANCA | E11: -Au titre des produits de placement à revenu fixe soumis au taux de 20% : | F11: 10520
B12: TSCE : | C12: 809333333 | E12: -Montant de l'impôt étranger acquitté | F12: 15625
B13: TSCE : | C13: 809333333 | E13: -Montant de l'impôt étranger théorique en cas d'exonération : | F13: 6250
B14: ADRESSE PRECEDENTE : | C14: =+C10 -> AVE MOHAMED V N° 05
B15: Ville : | C15: =+C11 -> CASABLANCA | E15: REDUCTION D'IMPOT | F15: MONTANT
B16: Subdivision | C16: =C11&"- ville" -> CASABLANCA- ville | E16: - NOMBRE DE DEDUCTION C.F | F16: 4
B17: Perception : | C17: =+C11 -> CASABLANCA | E17: - Pour charge de famille : | F17: =+F16*12*30 -> 1440
B18: TELEPHONE | C18: 06-61-61-61 | E18: - Au titre des retraites de source étrangère : | F18: 5752
B19: EMAIL | C19: abdo@gmail.com
Q21: Célibataire
J22: 3 | Q22: Marié
J23: TRUE | K23: =IF(J23=TRUE,1,2) -> 1 | Q23: Divorcé
Q24: Veuf
J25: TRUE | K25: =IF(J25=TRUE,1,2) -> 1
J26: TRUE | K26: 1 | Q26: oui
J27: TRUE | K27: 1 | Q27: non
J28: FALSE | K28: 2
J29: TRUE | K29: 1
J30: TRUE | K30: =IF(J30=TRUE,1,2) -> 1
J31: TRUE | K31: =IF(J31=TRUE,1,2) -> 1
J32: FALSE | K32: =IF(J32=TRUE,1,2) -> 2
C33: Situation de famille: | D33: Veuf
C34: Revenus
C35: Revenus Professionnels | D35: non
C36: Revenus agricoles | D36: oui
C37: Revenus salariaux | D37: oui
C38: Revenus fonciers | D38: oui
C39: Revenus fonciers agricoles | D39: oui
C40: Revenus de Capitaux mobiles | D40: oui
C41: revenus de source étrangère | D41: oui

Sheet PAGE-GARDE
B1: ROYAUME DU MAROC | AH1: Modèle n°ADP010F-14E
A8: DR/DIP/DP de : | L8: IMPOT SUR LE REVENU
A9: ………...………………………. | L9: DECLARATION DU REVENU GLOBAL
A10: Subdivision:
A11: ………………………………… | N11: Du | P11: 2015-01-01 | W11: Au | Y11: 2015-12-31
A12: Secteur : | D12: …………..………
L13: IDENTIFICATION DU CONTRIBUABLE
A15: Nom et Prénom(s) | G15: =+DONNES!C4 -> ABDO TEST | AI15: =+DONNES!C6 -> 80422222
AI16: N° D'identification fiscale
A18: Adresse actuelle du domicile fiscal ou du principal établissement | AI18: =+DONNES!C8 -> K6333333
B19: =+DONNES!C10 -> AVE MOHAMED V N° 05 | AI19: N° carte nationale d'identité
AJ20: ou carte de séjour
A22: Ville : | D22: =+DONNES!C11 -> CASABLANCA | W22: N° d'identification à la T.S.C(1) | AI22: =+DONNES!C12 -> 809333333
A24: Adresse précédente : | H24: =+DONNES!C14 -> AVE MOHAMED V N° 05
A26: Ville : | D26: =+DONNES!C15 -> CASABLANCA | W26: N° d'identification à la T.S.C(1) | AI26: =+DONNES!C13 -> 809333333
A28: Profession /activité principale : | K28: =+DONNES!C9 -> TRAVAUX COMPTABLES
A30: Nationalité: | F30: MAROCAINE
A32: Téléphone : | E32: =+DONNES!C18 -> 06-61-61-61 | S32: e-mail : | V32: =+DONNES!C19 -> abdo@gmail.com
A34: Situaion de famille : | K34: Célibataire | O34: =IF(SitF="Célibataire","X","") ->  | S34: Marié(e ) | V34: =IF(SitF="Marié","X","") ->  | Y34: Veuf (ve) | AB34: =IF(SitF="Veuf","X","") -> X | AE34: Divorcé (e ) | AI34: =IF(SitF="Divorcé","X","") -> 
Q37: NATURE DES REVENUS
A38: Mettre une croix dans la (ou les) case(s) appropriée (s) et joindre l'état ou les états corresponrants à
A39: vos revenus dûment servi(s)
R41: Oui | V41: Non
A42: Revenus professionnels | S42: =IF(DONNES!J23=TRUE,"X"," ") -> X | V42: =IF(DONNES!J23=FALSE,"X"," ") ->  | X42: (Etat n° ADP011F-14E)
A44: Revenus agricoles | S44: =IF(DONNES!J25=TRUE,"X"," ") -> X | V44: =IF(DONNES!J25=FALSE,"X"," ") ->  | X44: (Etat n° ADP012F-14E)
A46: Revenus salariaux et assimilés | S46: =IF(DONNES!J26=TRUE,"X"," ") -> X | V46: =IF(DONNES!J26=FALSE,"X"," ") ->  | X46: (Etat n° ADP013F-14E)
A48: Revenus fonciers | S48: =IF(DONNES!J27=TRUE,"X"," ") -> X | V48: =IF(DONNES!J27=FALSE,"X"," ") ->  | X48: (Etat n° ADP014F-14E et/ou ADP015F-14E)
A50: Revenus de capitaux mobiliers | S50: =IF(DONNES!J28=TRUE,"X"," ") ->  | V50: =IF(DONNES!J28=FALSE,"X"," ") -> X | X50: (Etat n° ADP016F-14E)
A52: Revenus et profits de source étrangère | S52: =IF(DONNES!J29=TRUE,"X"," ") -> X | V52: =IF(DONNES!J29=FALSE,"X"," ") ->  | X52: (Etat n° ADP017F-14E)
L55: CADRE RESERVE A L'ADMINISTRATION
AH56: cachet
A57: Déclaration reçue le : | I57: …………………………….. | R57: Enregistrée sous N° | Z57: ……………...………..
A59: Nombre d'états : | G59: …………………………………… | R59: Nombre d'annexes: | Y59: ……………………………..
A61: Nombre de pièces justificatives : | K61: …………………….
A65: (1) T.S.C : Taxe de services communaux.
O71: PERSONNES A CHARGE
B73: I- CONJOINT
B75: Nom et prénom (s)
B77: Profession
C80: N° C.N.I | R80: N° Carte de séjour | AF80: N° d'identification fiscale
B83: II - ENFANTS (en commençant par le plus jeune) (1)
E86: Nom et Prénom | R86: Date de naissance | AG86: N° de la C.N.I
B116: (1) | C116: - | D116: A condition qu'ils soient âgés de moins de 27 ans et qu'ils ne disposent pas de revenu annuel supérieur
D117: au seuil exonéré d'imposition. Cette condition d'âge n'est pas applicable aux enfants atteints d'infirmité.
C118: - | D118: Joindre les extraits d'actes de naissance,

Sheet REV-PROF
A2: Etat n° ADP011F-14E
A4: Revenus professionnels
M5: Annexe n°
A7: Nom & prénom (s) : | E7: =DONNES!C4 -> ABDO TEST | R7: N° identification fiscale : | X7: =DONNES!C6 -> 80422222
D8: I - :Régime du bénéfice forfaitaire (1)
A9: Activités exercées (2) | L9: Montant du chiffre d'affaires (C.A) en DH
L10: C.A imposable | P10: C.A des activités bénéficiant | X10: Total C.A
L11: totalité
P12: du taux réduit | T12: de l'exonération
P13: de 20% | T13: de 100%
A14: A titre individuel
A15: Activité | C15: =+DONNES!C9 -> TRAVAUX COMPTABLES | L15: 0 | P15: 0 | T15: 0 | X15: =L15 -> 0
A16: Identifiant TP (3) | E16: =+DONNES!C7 -> 50422222
A17: Activité | P17: 0 | T17: 0 | X17: =L17+P17+T17 -> 0
A18: Identifiant TP (3)
A19: En qualité d'associé principal
A20: Identifiant TP (3)
A21: Dénomination: | X21: =L21+P21+T21 -> 0
A22: Adresse:
A23: Ville :
A24: Identifiant TP (3)
A25: Dénomination: | X25: =L25+P25+T25 -> 0
A26: Adresse:
A27: Ville :
A28: Quote-part dans l'indivision (4)
A29: Identifiant TP (3)
A30: Dénomination: | X30: =L30+P30+T30 -> 0
A31: Adresse:
A32: Ville :
A33: Identifiant TP (3)
A34: Dénomination: | X34: =L34+P34+T34 -> 0
A35: Adresse:
A36: Ville :
A37: TOTAUX | L37: =SUM(L15:O36) -> 0 | P37: =P15+P17+P21+P25+P30+P34 -> 0 | T37: =T15+T17+T21+T25+T30+T34 -> 0 | X37: =SUM(X15:AA36) -> 0
A39: PLUS VALUES ET INDEMNITES
A40: Indemnité recues en contrpartie de la cessation de l'exercice de la profession ou du transfert de la clientèle (5) | I40: Montant des subventions et dons reçus de l'Etat, des ciollectivités locales ou des tiers. | Q40: Montant global des plus-values nettes réalisés à l'occasion du retrait ou de la cession des biens corporels et incorporels affectés à l'exercice de la profession(5) (Terrains et constructions exclus)
A45: Idenitifiant | D45: Nature | F45: Montant | I45: Idenitifiant | L45: Montant | Q45: Idenitifiant | T45: Nature | X45: Montant
A46: TP (3) | D46: total | E46: partie | I46: TP (3) | L46: Dons | O46: Subvention | Q46: TP (3) | T46: Retrait | V46: Cession
A51: (1) - Sous réserve des dispositions de l'article 41 du CGI relatif aux conditions d'application du régime forfaitaire.
A52: - les contribuables imposés d'après le régime du forfait qui adhérent aux centres de gestion de comptabilité agrées, bénéficient d'un
A53: abattement de la base imposable de 15%. Joindre pièces justificatives d'adhésion,
A54: (2) -Joindre un état annexe si le nombre d'activité exercées à titre individuel, en qualité d'associé principal, ou dans l'indivision, dépasse
A55: deux.
A56: (3) T.P : Taxe Professionnelle.
A57: (4) Joindre un acte authentique faisant ressortir la part de chacun des co-indivisaires ou associés.
A58: (5) Joindre les pièces justificatives d'acquisition, de cession ou de retrait.
A60: Etat n° ADP011F-14E
A61: Revenus professionnels
M62: Annexe n° :
A65: II - Résultat net professionnelle ( RNS ET RNR )
A66: Activités exercées (1) | L66: Régime du résultat net simplifié | T66: Régime du résultat net réel
L68: (RNS) (2) | T68: (RNR)
L69: Bénéfice net fiscal | P69: Déficit fiscal | T69: Bénéfice net fiscal | X69: Déficit fiscal
A73: A titre individuel
A74: Activité : | C74: =DONNES!C9 -> TRAVAUX COMPTABLES | T74: 315140 | X74: 0
A75: Identifiant TP (3) | E75: =+DONNES!C7 -> 50422222
A76: Activité :
A77: Identifiant TP (3)
A78: Activité :
A79: Identifiant TP (3)
A80: En qualité d'associé principal
A81: Identifiant TP (3)
A82: Dénomination: | X82: =L82+P82+T82 -> 0
A83: Adresse:
A84: Ville :
A85: Identifiant TP (3)
A86: Dénomination:
A87: Adresse:
A88: Ville :
A89: Identifiant TP (3)
A90: Dénomination:
A91: Adresse:
A92: Ville :
A93: Quote-part dans l'indivision ou la société en participation (4)
A95: Identifiant TP (3)
A96: Dénomination:
A97: Adresse:
A98: Ville :
A99: Identifiant TP (3)
A100: Dénomination:
A101: Adresse:
A102: Ville :
A103: Identifiant TP (3)
A104: Dénomination:
A105: Adresse:
A106: Ville :
F107: TOTAUX | L107: =SUM(L73:S106) -> 0 | T107: =SUM(T73:AA106) -> 315140
A108: (1) Joindre un état annexe si le nombre d'activités exércées à titre individuel,en qaulité d'associé principal, ou dans
A109: l'indivision ou dans la société en participation, dépassen trois,
A110: (2) -Sous réserve des dispositions de l'article 39 du CGI relatif aux conditions d'application du régime du résultat net
A111: simplifié,
A112: - Les contribuables imposés d'après le régime du résultat net simplifié, qui adhérent aux centres de gestion de
A113: comptabilité agrées, bénéficient d'un abattement de la base imposable de 15%. Joindre pièces justificatives d'adhésion,
A114: (3) T.P : Taxe Professionnelle.
A115: (4) - Le bénéfice des sociétés en participationest détérminé obligatoirement selon le régime du résultat net réel,
A116: - Joindre un acte authentique faisant ressortir la part de chacun des co-indivisaires ou associés.

Sheet REV-AGR
O1: Etat n° ADP012F-14E
H2: Revenus agricoles
A3: Liste des exploitations (2) | I3: Régime du bénefice frfaitaire(3) | M3: Régime du résultat net réel (RNR)
I5: Chiffre d'affaires | M5: Bénéfice net fiscale | P5: Déficit fiscal
A7: A titre individuel (4)
A8: Désignation de l'exploitation
A9: Qualité de l'exploitant P.L.U (5)
A10: superficie | M10: 0 | P10: -125000
A11: Lieu de situation
A12: TF ou régime foncier
A13: Plantation ou culture (6)
A14: Désignation de l'exploitation
A15: Qualité de l'exploitant P.L.U (5)
A16: superficie
A17: Lieu de situation
A18: TF ou régime foncier
A19: Plantation ou culture (6)
A21: Quate-part dans l'indivision (4) ou la société en participation
A23: Désignation de l'exploitation
A24: Qualité de l'exploitant P.L.U (5)
A25: superficie
A26: Lieu de situation
A27: TF ou régime foncier
A28: Plantation ou culture (6)
A30: Désignation de l'exploitation
A31: Qualité de l'exploitant P.L.U (5)
A32: superficie
A33: Lieu de situation
A34: TF ou régime foncier
A35: Plantation ou culture (6)
C36: TOTAUX | I36: =SUM(I10:L35) -> 0 | M36: =SUM(M10:O35) -> 0 | P36: =SUM(P10:R35) -> -125000
B37: Plus values de cessions (terres, plantations et autres éléments de l'actif) (7)
A38: Nature du bien cédé | D38: Cession | H38: Date | J38: coût de revient | M38: date de | O38: Prix de | Q38: Montant de la
D39: totale | F39: partielle | H39: d'acquisition | M39: cession | O39: cession | Q39: plus value
A47: (1) Revenus exonérés jusqu'au 31 décembre 2013,
A48: (2) joindre un état annexe si le nombre des exploitations dépasse deux,
A49: (3) Le revenu imposable provenant des exploitations agricoles est détérminé d'après un bébéfice forfaitaire tel que défini à l'article 49 en tenant
A50: compte des dispositions de l'article 51. (Dispositions de l'artice 48 du C.G.I)
A51: (4) Dispense de déclaration pour les contribuables disposant uniquement de revenus agricoles provenant d'une seule exploitation losqu'ils relèvent
A52: du régime forfaitaire.( Dispositions de l'article 86 du C.G.I)
A53: (5) - P= propriétaire L= location U= usifruitier
A54: - En cas de location, joindre copie du contrat de location ou indiquer le nom et l'identité du propriétaire.
A55: (6) joindre un état annexe donnant le détail des :
A56: -Terres de culture irriguées ou non irriguées
A57: -Plantation régulières et irrigulières (nature des plantations, année de plantation et le revenu correspondant);
A58: -Animaux (nombre de têtes par espéce ),
A59: (7) Tableau réservé aux contribuables imposés d'après le régime du forfait,

Sheet REV-SAL
AT1: Etat n° ADP013F-16E
A2: REVENUS SALARIAUX ET ASSIMILES (1)
A3: (SALAIRES)
B5: Nom et Prénom (s) : | K5: =+DONNES!C4 -> ABDO TEST | AG5: N° d'immatriculation à la PPR
B7: N° d'Identifiant fiscale : | M7: =+DONNES!C6 -> 80422222 | AG7: N° d'immatriculation à la CNSS
B9: Nom et prénom (s) ou raison sociale de l'employeur | AF9: Adresse de l'employeur
B14: A - ELEMENTS DES REVENUS SALARIAUX ET ASSIMILES :
B16: Traitements, salaires, indemnités et émoluments y compris les avantages en argent ou en nature | AO16: A | AU16: 178500
B17: B - ELEMENTS EXONERES :
B19: 1. Indemnités destinées à couvrir les frais inhérents à la fonction ou à l'emploi, exonérées conformement
C20: à l'article 57-1° du CGI.
B21: 2. Allocations familiales ou d'assistance à la famille. | AU21: 0
B23: 3.- Autres exonérations (2) | AU23: 0
AO25: B | AU25: =SUM(AU19:BD23) -> 0
B27: C - REVENU BRUT IMPOSABLE : | AL27: C = A-B | AU27: =+AU16-AU25 -> 178500
B29: D - | D29: DEDUCTIONS
C30: D1 Déductions sur salaires
B31: 1 - Déductions pour frais inhérents à la fonction ou à l'emploi dans la limite de 30.000 dh (3)
C32: (les avantages en argents ou en nature ne doivent pas être compris dans la base de calcul des frais professionnels) :
B33: a) - CAS GENERAL : | M33: - Revenu Brut imposable : | W33: =AU27 -> 178500 | AI33: DH | AK33: x | AM33: 0.2 | AU33: =IF((W33*AM33)>30000,30000,W33*AM33) -> 30000 | BF33: =W33*AM33 -> 35700
B34: b) - CAS PARTICULIER : - Les professions pour lesquelles le taux de déduction est supérieur 20%
F35: - Montant global de rémunérations : (4) | V35: =AU27 -> 178500 | AI35: DH | AK35: x | AL35: Taux | AU35: =V35*AO35 -> 0
B36: 2-a) - Retenue effectuée par l'employeur pour la constitution de pension de retraite :
F37: - Base de calcul de la Retenue : | S37: 0 | V37: =AU27 -> 178500 | AI37: DH | AK37: x | AL37: Taux | AU37: =V37*AO37 -> 0
C39: b) - Primes ou cotisations d'assurance retraite (5) | AU39: 0
C41: c) - Montant du rachat précompté par l'employeur | AD41: =V43*AO43 -> 3225.6 | AU41: 0
B42: 3 - Cotisation aux organisme de prévoyance et de sécurité sociale :
J43: Montant Brut Imposable : | V43: =MIN(AU27,6000*12) -> 72000 | AI43: DH | AK43: x | AL43: Taux | AO43: 0.0448 | AU43: =V43*AO43 -> 3225.6 | BF43: 0.0448 | BG43: 0.0448
B45: 4 - AMO : | J45: Montant Brut Imposable : | V45: =AU27 -> 178500 | AI45: DH | AK45: x | AL45: Taux | AO45: 0.02 | AU45: =V45*AO45 -> 3570 | BF45: 0.0226 | BG45: 0.02
B47: 5 - Part salariale des primes d'assurance-groupe maladie, maternité, invalidité et décès. | AU47: 0
B48: 6 - Remboursement en principal et intérêts des prêts contractés ou du coût d'acquisition et de la rémunération
B49: convenue d'avance dans le cadre d'un contrat "Mourabaha", pour l'acquisition d'un logement social : | AU49: 0
B51: - Revenu Net Imposable avant déduction des intérêts. | AU51: 0
B52: - Montant des intérêts des prêts, ou montant de la rémunération convenue d'avance dans le cadre
B53: d'un contrat "Mourabaha", obtenus pour l'acquisition ou la construction de logement à usage
B54: d'habitation principale dans la limite de 10% du Revenu Net Imposable (6) | AU54: 0
C55: D2 Abattement forfaitaire
B56: Abattement forfaitaire de 40% applicable au montant brut imposable des salaires perçus par les sportifs
B57: professionnels (cet abattement n'est cumulable avec aucune autre déduction) :
F58: - Montant Brut Imposable : | S58: 0 | AE58: DH | AG58: x | AH58: 0.4 | AU58: =S58*AH58 -> 0
AO60: D | AU60: =SUM(AU33:BD58) -> 36795.6
V62: SALAIRE NET IMPOSABLE (C-D) | AU62: =AU27-AU60 -> 141704.4
A64: (1) | B64: Joindre attestation annuelle détaillée de salaire délivrée par l'employeur.
A65: (2) | B65: Cf. article 57 du Code Général des Impôts (CGI).
A66: (3) | B66: - Pour les revenus salariaux acquis à compter de 1er janvier 2010.
B67: - Le plafond de 30.000 ne s'applique par pour le personnel navigant de la marine marchande et de la pêche maritime.
A68: (4) | B68: Ycompris les indemnités versées à titre de frais d'emploi, de service, de route, et autre allocations similaires (exclusion faite des avantages en argent ou en nature)
A69: (5) | B69: Cette déduction n'est pas cumulables avec celle prévu pour les autres régimes de retraite en vigueur.
B70: a - joindre à la présente déclaration une copie certifiée conforme du contrat d'assurance ainsi que l'attestation de paiement des primes ou des cotisations délivrée par
B71: la société d'assurances.
B72: b - En cas de revenus multiples (salariaux et autres), le contribuable a la possibilité de déduire la prime d'assurance retraite en totalité soit au niveau de son salaire net
B73: soit au niveau de son revenu net, soit dans la limite de 6% de son revenu global imposable.
A74: (6) | B74: Cette ligne n'est à servir que si l'employeur a déjà déduit ces intérêts lors du calcul du prélèvement de l'IR à la source, les intérêts y afférents ne sont pas cumulatifs
B75: avec la déduction prévue au 6 du D1.
AU77: Etat n° ADP013F-16E
A79: REVENUS SALARIAUX ET ASSIMILES (1)
A81: (PENSIONS OU RENTES VIAGERES)
B84: Nom et Prénom (s) : | M84: =+DONNES!C81 -> 0 | AQ84: N° de la pension :
B86: N° d’identification fiscale : | O86: =+DONNES!C83 -> 0 | AQ86: N° d'immatriculation à la CNSS :
B88: Nom et prénom (s) ou raison sociale du débirentier | AF88: adresse du débirentier
B93: A - ELEMENTS DE LA PENSION OU RENTE VIAGERE :
B95: - Pensions ou rentes viagères. | AR95: A | AU95: 75860
B96: B - ELEMENTS EXONERES :
B97: 1. Allocations familiales ou d'assistance à la famille.
B99: 2.- Autres exonérations (2)
AR101: B | AU101: =SUM(AU97:BB99) -> 0
B103: C - REVENU BRUT IMPOSABLE : | AS103: C = A-B | AU103: =+AU95-AU101 -> 75860
B105: D - | D105: DEDUCTIONS
B106: Abattement de 55% ou de 40% applicable au montant brut imposable des pensions et rentes viagères (3) :
F107: - Montant Brut Imposable : | V107: =AU103 -> 75860 | AJ107: DH | AL107: x | AM107: Taux | AP107: =IF(V107<168000,55%,40%) -> 0.55 | AU107: =V107*AP107 -> 41723
B108: 1 - Cotisation aux organisme de prévoyance et de sécurité sociale :
F109: - Montant Brut Imposable : | V109: =+AU103 -> 75860 | AJ109: DH | AL109: x | AM109: Taux
B111: 2 - Part salariale des Primes d'assurances-groupe maladie, maternité, invalidité et décès. | AU111: 0
B113: 3 - AMO : Montant Brut Imposable : | S113: 0 | V113: =+AU103 -> 75860 | AJ113: DH | AL113: x | AM113: Taux
B115: 4- Remboursement en principal et intérêts des prêts contractés ou du coût d’acquisition et de la
B116: rémunération convenue d’avance dans le cadre d’un contrat "Mourabaha", pour l’acquisition | AU116: 0
B117: d’un logement social.
B119: - Revenu Net Imposable avant déduction des intérêts.
B120: 5- Montant des intérêts des prêts, ou montant de la rémunération convenue d’avance dans le
B121: cadre d’un contrat"Mourabaha", obtenus pour l’acquisition ou la construction de logement à | AU121: 0
B122: usage d’habitation principale dans la limite de 10% du Revenu Net Imposable (4)
AR124: D | AU124: =SUM(AU106:BB123) -> 41723
T126: PENSION NETTE IMPOSABLE (C-D) | AU126: =AU103-AU124 -> 34137
B129: (1) Joindre attestation annuelle détaillée de pension, délivrée par le débirentier.
B130: (2) Cf. article 57 du Code Général des Impôts (CGI).
B131: (3) L’abattement de 55% s’applique sur le montant brut annuel inférieur ou égal à 168 000 dirhams ;
C132: L’abattement de 40 % s’applique pour le surplus.
C133: Ces abattements sont appliqués aux pensions de retraite et rentes viagères acquises à compter du 1er janvier 2015.
B134: (4) Cette ligne n’est à servir que si l’employeur a déjà déduit ces intérêts lors du calcul du prélèvement de l’IR à la source, les intérêts y
C135: afférents ne sont pas cumulatifs avec la déduction prévue au 4 du D.

Sheet REV-FONC
BZ1: Etat n° ADP014F-16E
A3: REVENUS FONCIERS DES PROPRIETES NON AGRICOLES (1)
AK5: Annexe n°
B6: Nom et Prénom (s) : | K6: =+DONNES!C4 -> ABDO TEST
B8: N° d'Identifiant fiscale : | M8: =+DONNES!C6 -> 80422222
A10: Désignation | AV10: Affectation (2) | BK10: Montant des loyers (4) des immeubles
AV11: L | AY11: V | BB11: OP | BE11: OTG (3) | BK11: possédé à titre individuel | BT11: Part dans l'indivision ou la société en participation (5)
BE12: OAD | BH12: OT
A14: Nom - Prénoms ou raison sociale de l'occupant :
A16: Lieu de situation de l'immeuble : | AW16: X | BL16: 156200
A18: Consistance : | G18: Garage | P18: Art. TSC : | AB18: Titre foncier ou régime foncier :
A21: Nom - Prénoms ou raison sociale de l'occupant :
A23: Lieu de situation de l'immeuble : | AW23: X | BL23: 75670
A25: Consistance : | G25: Maison | P25: Art. TSC : | AB25: Titre foncier ou régime foncier :
A28: Nom - Prénoms ou raison sociale de l'occupant :
A30: Lieu de situation de l'immeuble :
A32: Consistance : | P32: Art. TSC : | AB32: Titre foncier ou régime foncier :
A35: Nom - Prénoms ou raison sociale de l'occupant :
A37: Lieu de situation de l'immeuble : | BL37: 0
A39: Consistance : | P39: Art. TSC : | AB39: Titre foncier ou régime foncier :
A42: Nom - Prénoms ou raison sociale de l'occupant :
A44: Lieu de situation de l'immeuble : | BL44: 0
A46: Consistance : | P46: Art. TSC : | AB46: Titre foncier ou régime foncier :
A49: Nom - Prénoms ou raison sociale de l'occupant :
A51: Lieu de situation de l'immeuble : | BL51: 0
A53: Consistance : | P53: Art. TSC : | AB53: Titre foncier ou régime foncier :
A55: (1) Joindre un état annexe selon ce modèle si le nombre des propriétés dépasse neuf.
A57: Désignation | AV57: Affectation (2) | BK57: Montant des loyers (4) des immeubles
AV58: L | AY58: V | BB58: OP | BE58: OTG (3) | BK58: possédé à titre individuel | BT58: Part dans l'indivision ou la société en participation (5)
BE59: OAD | BH59: OT
A62: Nom - Prénoms ou raison sociale de l'occupant :
A64: Lieu de situation de l'immeuble : | BL64: 0
A66: Consistance : | P66: Art. TSC : | AB66: Titre foncier ou régime foncier :
A69: Nom - Prénoms ou raison sociale de l'occupant :
A71: Lieu de situation de l'immeuble : | BL71: 0
A73: Consistance : | P73: Art. TSC : | AB73: Titre foncier ou régime foncier :
A76: Nom - Prénoms ou raison sociale de l'occupant :
A78: Lieu de situation de l'immeuble : | BL78: 0
A80: Consistance : | P80: Art. TSC : | AB80: Titre foncier ou régime foncier :
A82: Total | BK82: =BL78+BL71+BL64+BL51+BL44+BL37+BL30+BL23+BL16 -> 231870 | BT82: =SUM(BT14:CA54)+SUM(BT62:CA80) -> 0
A83: Montant brut imposable total (6)
BL84: =BK82+BT82 -> 231870
A86: Abattement de 40%
BL87: =BL84*40/100 -> 92748
A89: Total net imposable
BL90: =BL84-BL87 -> 139122
A92: INDEMNITE D'EVICTION (7)
A94: Lieu de situation de l'immeuble | X94: Identification de la partie versante | AV94: Date de perception de l'indemnité | BF94: Montant de l'indemnité | BM94: Abattement de 40% | BU94: Montant net
X95: Nom-prénom ou raison sociale | AJ95: CNI ou n° d'identification fiscale
BG97: 0 | BN97: =BG97*40/100 -> 0 | BV97: =BG97-BN97 -> 0
A100: (2) Mettre une croix (x) dans la case appropriée L : Loué ; V : Vacant ; OP : Occupé par le Propriétaire ; OTG : Occupé à Titre Gratuit ; OAD : Occupé par les Ascendant et les Descendant ; OT : Occupé par des Tiers.
A101: (3) Joindre les justifications motivant l'occupation a titre gratuit.
A102: (4) Des loyers bruts imposables sont déduites, le cas échéant, les charges supportées par le propriétaire pour le compte des locataires. Parmis ces charges figure notament la TSC lorsque son montant est distingué dans le contrat de location.
A103: (5) Joindre un acte authentique faisant ressortir la part de chacun des co-indivisaires ou société et/ou un contrat de bail en cas de l'affectation de l'immeuble.
A104: (6) Montant brut imposable total de la page (ou de l'endsemble des pages annexes si le nombre de propriétés dépasse neuf).
A105: (7) Joindre les pièces justificatives.

Sheet REV-FONC-AGR
BV1: Etat n° ADP015F-16E
A4: REVENUS FONCIERS DES PROPRIETES AGRICOLES (1)
AK6: Annexe n°
B8: Nom et Prénom (s) : | K8: =+DONNES!$C$4 -> ABDO TEST
B10: N° d’identification fiscale : | M10: =+DONNES!$C$6 -> 80422222
A12: Désignation | AZ12: Montant annuel du loyer du fermage ou son équivalent en DH. (2)
AZ14: à titre induviduel | BL14: possédé dans l'indivision ou la société en participation (3)
BL16: Montant brut | BV16: Quote part en %
A19: Nom - Prénoms ou raison sociale de l’exploitant : | BD19: 0
A21: Lieu de situation de l'immeuble : | BA21: 274500 | BM21: 15200 | BW21: 0.6
BA22: 7
A23: Consistance : | Q23: Art. TSC : | AC23: Titre foncier ou régime foncier :
A26: Nom - Prénoms ou raison sociale de l’exploitant : | BD26: 0
A28: Lieu de situation de l'immeuble : | BA28: 0 | BM28: 0 | BW28: 0
A30: Consistance : | Q30: Art. TSC : | AC30: Titre foncier ou régime foncier :
A33: Nom - Prénoms ou raison sociale de l’exploitant : | BD33: 0
A35: Lieu de situation de l'immeuble : | BA35: 0 | BM35: 0 | BW35: 0
A37: Consistance : | Q37: Art. TSC : | AC37: Titre foncier ou régime foncier :
A40: Nom - Prénoms ou raison sociale de l’exploitant : | BD40: 0
A42: Lieu de situation de l'immeuble : | BA42: 0 | BM42: 0 | BW42: 0
A44: Consistance : | Q44: Art. TSC : | AC44: Titre foncier ou régime foncier :
A47: Nom - Prénoms ou raison sociale de l’exploitant : | BD47: 0
A49: Lieu de situation de l'immeuble : | BA49: 0 | BM49: 0 | BW49: 0
A51: Consistance : | Q51: Art. TSC : | AC51: Titre foncier ou régime foncier :
A54: (1) Joindre un état annexe selon ce modèle si le nombre des propriétés dépasse dix.
A58: Désignation | AZ58: Montant annuel du loyer du fermage ou son équivalent en DH. (2)
AZ60: à titre induviduel | BL60: possédé dans l'indivision ou la société en participation (3)
BL62: Montant brut | BV62: Quote part en %
A65: Nom - Prénoms ou raison sociale de l’exploitant : | BD65: 0
A67: Lieu de situation de l'immeuble : | BA67: 0 | BM67: 0 | BW67: 0
A69: Consistance : | Q69: Art. TSC : | AC69: Titre foncier ou régime foncier :
A72: Nom - Prénoms ou raison sociale de l’exploitant : | BD72: 0
A74: Lieu de situation de l'immeuble : | BA74: 0 | BM74: 0 | BW74: 0
A76: Consistance : | Q76: Art. TSC : | AC76: Titre foncier ou régime foncier :
A79: Nom - Prénoms ou raison sociale de l’exploitant : | BD79: 0
A81: Lieu de situation de l'immeuble : | BA81: 0 | BM81: 0 | BW81: 0
A83: Consistance : | Q83: Art. TSC : | AC83: Titre foncier ou régime foncier :
A86: Nom - Prénoms ou raison sociale de l’exploitant : | BD86: 0
A88: Lieu de situation de l'immeuble : | BA88: 0 | BM88: 0 | BW88: 0
A90: Consistance : | Q90: Art. TSC : | AC90: Titre foncier ou régime foncier :
A93: Nom - Prénoms ou raison sociale de l’exploitant : | BD93: 0
A95: Lieu de situation de l'immeuble : | BA95: 0 | BM95: 0 | BW95: 0
A97: Consistance : | Q97: Art. TSC : | AC97: Titre foncier ou régime foncier :
A99: Revenu net imposable
BA100: =BA95+BA88+BA81+BA74+BA67+BA49+BA42+BA35+BA28+BA21 -> 274500 | BM100: =BM95+BM88+BM81+BM74+BM67+BM49+BM42+BM35+BM28+BM21 -> 15200 | CF100: =+BM100+BA100 -> 289700 | CG100: =+CF100+SUM('REV-FONC'!BL90:BU90) -> 428822
A103: (2) Le revenu net imposable des proprétés agricoles données en location, construction et matériel y attachés, est déterminé coome suit :
B104: a) 1er cas : Rémunération en argent (revenu net imposable = montant du loyer stipulé dans le contrat) ;
B105: b) 2ème cas : Rémunération en nature (revenu net imposable = prix moyen de la culture pratiquée x la quantité) ;
B106: c) 3ème cas : Location à par de fruit (revenu net imposable = fraction du revenu agricole forfaitaire).
A107: (3) Joindre un acte authentique faisant ressortir la part de chacun des co-indivisaires ou associés.

Sheet REV-CAPMOB
AM1: Etat n° ADP016F-16E
A4: REVENUS DE CAPITAUX MOBILIERS
B6: Nom et Prénom (s) : | K6: =+DONNES!C4 -> ABDO TEST
B8: N° d'Identifiant fiscale : | M8: =+DONNES!C6 -> 80422222
A11: Désignation de la société ou de l'organisme bancaire distributeur | R11: Produits de placement à revenu fixe en DH (1) | AJ11: Retenue à la source en DH
R12: Montant brut | X12: Frais | AD12: Montant net | AJ12: Taux | AP12: Montant
S14: 52600 | Y14: 0 | AE14: =+S14-Y14 -> 52600 | AK14: 0.2 | AQ14: =+AK14*AE14 -> 10520
S17: 0 | Y17: 0 | AE17: 0 | AQ17: 0
AE20: =+S20-Y20 -> 0
AE23: =+S23-Y23 -> 0
AE26: =+S26-Y26 -> 0
AE29: =+S29-Y29 -> 0
AE32: =+S32-Y32 -> 0
AE35: =+S35-Y35 -> 0
AE38: =+S38-Y38 -> 0
AE41: =+S41-Y41 -> 0
AE44: =+S44-Y44 -> 0
AE47: =+S47-Y47 -> 0
AE50: =+S50-Y50 -> 0
AE53: =+S53-Y53 -> 0
AE56: =+S56-Y56 -> 0
AE59: =+S59-Y59 -> 0
A62: TOTAL
S63: =SUM(R14:W59) -> 52600 | Y63: =SUM(X14:AC59) -> 0 | AE63: =SUM(AD14:AI59) -> 52600 | AQ63: =SUM(AP14:AU59) -> 10520 | AV63: =+DONNES!F11 -> 10520 | AW63: =+AQ63-AV63 -> 0
A66: (1) Joindre attestation de la société ou de l'organisme distributeur.

Sheet REV-ETRANGER
N1: Etat n° ADP017F- 14E
A3: REVENUS ET PROFITS DE SOURCE ETRANGERE IMPOSABLES OU
A4: EXONERES DANS LE PAYS D'ORIGINE (2)
A5: Nature des revenus | F5: Paye d'origine | I5: Montant des revenus bruts imposés dans le pays d'origine convertis en DH | L5: Montant converi en DH
L7: de l'impôt acquitté | N7: de l'impôt théorique (en cas d'exonération) (2)
A10: Professionnels | I10: 65840 | L10: =9876+5749 -> 15625
A13: Agricoles | I13: 12500 | N13: =3265+2985 -> 6250
A16: Fonciers
A19: Salariaux et assimiliés (3)
A22: Capitaux mobiliers | I22: 0 | L22: 0 | N22: 0
F25: TOTAL | I25: =SUM(I9:K22) -> 78340 | L25: =SUM(L9:M23) -> 15625 | N25: =SUM(N9:P23) -> 6250
L26: =+DONNES!F12-L25 -> 0 | N26: =+DONNES!F13-N25 -> 0
A29: (1) Joindre attestation de la société ou l'organisme distributeur.
A30: (2) Joindre les pièces justificatives.
A31: Sous réserve des conventions fiscales, les revenus de source étrangère sont compris dans le revenu global imposable pour leur montant brut,à l'exclusion
A32: des revenus et profits de capitaux mobilièrs de source étrangère visés à l'article 25 du CGI.
A33: Lorsque ces revenus sont soumis à un impôt sur le revenu dans le pays de la source avec lequel le Maroc a conclu une convention tendant à éviter la double
A34: imposition, l'impôt étrangèr est déductible de l'impôt sur le revenu dans la limite de la fraction de cet impôt correspondant aux revenus étrangèrs.Toutefois, lorsque
A35: ces revenus ont bénéficié d'une exonération dans le pays de la source, celle-ci vaut paiement. La déduction de cet impôt est subordonnée à la production
A36: d'attestation de l'administartion fiscale du pays d'origine.
A38: (3) - Les pensions de retraite de source étrangère bénéficient d'une réduction de 80% d'impôt dû au titre de leur pension et correspondant aux sommes transférées à titre
A39: définitif en dirhams non convertibles,
A40: - Joindre attestation de versement des pensions établie par le débirentier ou tout AUTRE document en tenant lieu
A41: - Joindre attestation de l'établissement de crédit ou tout autre organisme intervenant dans le paiement des pensions, justifiant le transfert en dirhams non
A42: convertible

Sheet REV-TAXABLE
A1: A- DETERMINATION DU REVENU NET TAXABLE
A3: A-CALCUL DU REVENU NET IMPOSABLE
C4: NATURE DES REVENUS | I4: MONTANTS en DH
A5: I- REVENU GLOBAL IMPOSABLE
A6: Revenus professionnels (1) | H6: =MAX(+'REV-PROF'!L107+'REV-PROF'!T107,0) -> 315140
A7: Revenus agricoles | H7: =MAX(+'REV-AGR'!I36+'REV-AGR'!M36+'REV-AGR'!P36,0) -> 0
A8: Revenus fonciers | H8: =+'REV-FONC'!BL90+SUM('REV-FONC-AGR'!BA100:BM100) -> 428822
A9: Revenus salariaux et assimilés (2) | H9: =+'REV-SAL'!AU62+SUM('REV-SAL'!AU126:BB126) -> 175841.4
A10: Revenus de capitaux mobiliers (revenus de placement à revenu fixe) | H10: =SUM('REV-CAPMOB'!AE63:AH63) -> 52600
A11: Revenus de source étrangère | H11: =+SUM('REV-ETRANGER'!I25:K25) -> 78340
D13: I - Revenu global imposable (I) | H13: =SUM(H6:J12) -> 1050743.4
E14: (R.G.I)
A15: II - DEDUCTION SUR REVENU GLOBAL IMPOSABLE :
A16: ♦Montant des Dons en argent ou en nature prévus à l'article 28-I et octroyés aux
A17: organismes visés à l'article 10-I-B-2° du CGI
A18: ♦Montant des Intérêt des prêts, ou montant de la rémunération convenue dans le cadre
A19: d'un contrat "Mourabaha", pour l'acquisition ou la construction de logement à usage
A20: d'habitation principale. (Dans la limite de 10% du R.G.I) (4) | H20: 0
A21: ♦Montant des Primes ou cotisation d'assurance retraite dans la limite de 6% du R.G.I (5)
E22: II - Total des déductions (II)
D24: Revenu net global taxable (I-II) | H24: =+H13 -> 1050743.4
E25: (R.N.I)
A27: B - IMPUTATIONS SUR IMPOT
A28: I- COTISATION MINIMAL AQUITTEE (5)
D29: PROFESSIONNEL | G29: AGRICOLE
B30: ♦ Montant | D30: =+DONNES!F5 -> 214145 | G30: =+DONNES!G5 -> 2745
B32: ♦Date de versement | D32: =+DONNES!F6 -> 2016-01-31 | G32: =+DONNES!G6 -> 2016-01-31
B34: ♦Quittance n° | D34: =+DONNES!F7 -> 12121212 | G34: =+DONNES!G7 -> 21212121
A36: II - IMPOT RETENU A LA SOURCE (6)
A37: a - Au titre de revenus salariaux et assimilés : | H37: =+DONNES!F10 -> 65464
A38: b- Au titre des produits de placement à revenu fixe soumis au taux de 20% | H38: =+DONNES!F11 -> 10520
A39: c- Montant de l'impôt étranger acquitté (ou théoriique en cas d'exonération) : | H39: =+DONNES!F12+DONNES!F13 -> 21875
A41: C - REDUCTIONS D'IMPÖT
A43: a - Pour charge de famille : | D43: =+DONNES!F17 -> 1440
A45: b - Au titre des retraites de source étrangère : | E45: =+DONNES!F18 -> 5752
F47: A | G47: Tanger | H47: Le: | I47: =TODAY() -> 2016-04-29
I48: Cachet et Signature
A49: (1) A servir uniquement par les contribuables dont le revenu professionnel est
A50: détérminé d'après les régimes du résultat net simplifié ou du résultat net réel en cas de
A51: réalisation d'un bénéfice,
A52: (2) Il s'agit du total du montant net imposable du salaire et/ou de la pension, le cas
A53: échéant,
A54: (3) Cette déduction n'est pas cumulable avec celle prévue au titre des revenus
A55: salariaux et assimiliés visée à l'article 59-V du CGI
A56: (4) Cf. renvoi 5 de l'annexe ADP013F relative aux revenus salariaux.
A57: (6) Joindre a titre de pièce justificatife le volet du bordereau, Avis de versement
A58: dûment servi par la perception ou la recette concernée.
A59: (6) Pour justifier les retenus à la source, Joindre les pièces justificatives suivantes :
A60: ♦Attestation de salaire et/ou attestation de versement des pensions établie
A61: par l'employeur et/ou le débirentier;
A62: ♦Attestation de la société ou de l'organisme bancaire distributeur;
A63: ♦Attestation de l'administration fiscale étrangére ,

Sheet CALCUL IR
A1: Calcul de l'IR | E1: BAREME IR
A2: REVENUS PROFESSIONNELS | B2: =IF('REV-PROF'!L107+'REV-PROF'!T107<0,0,'REV-PROF'!T74) -> 315140 | E2: Revenu annuel | F2: Taux | G2: Somme à déduire | Q2: =SUM(B2:B8) -> 1050743.4
A3: REVENUS AGRICOLES | B3: =IF('REV-TAXABLE'!H7<0,0,'REV-AGR'!M10) -> 0 | E3: 0 | F3: 0 | G3: 0
A4: REVENUS FONCIERS | B4: ='REV-TAXABLE'!H8 -> 428822 | E4: 30001 | F4: 0.1 | G4: 3000
A5: REVENUS SALARIAUX | B5: ='REV-TAXABLE'!H9 -> 175841.4 | E5: 50001 | F5: 0.2 | G5: 8000
A6: REVENUS CAPITAUX MOBILIERS | B6: =+'REV-TAXABLE'!H10 -> 52600 | E6: 60001 | F6: 0.3 | G6: 14000
A7: REVENUS DE SOURCE ETRANGERE | B7: =+'REV-TAXABLE'!H11 -> 78340 | E7: 80001 | F7: 0.34 | G7: 17200
E8: 180001 | F8: 0.38 | G8: 24400
A9: Revenue Net Global Imposable | B9: =ROUNDUP(SUM(B2:B7),-1) -> 1050750 | E9: 999999999
A10: Taux selon barème | B10: =+VLOOKUP(B9,$E$3:$G$9,2) -> 0.38 | E10: TAUX SPECIFIQUE DE TANGER
A11: Abattement | B11: =+VLOOKUP(B9,$E$3:$G$9,3) -> 24400 | E11: ANNEE | F11: TAUX EN % | G11: PLAFOND
E12: EX 2010 | F12: 0.2 | G12: 122857
A13: IR THEORIQUE SELON BAREME | B13: =ROUNDUP((B9*B10-B11-B12),0) -> 374885 | E13: EX 2011 | F13: =+F12+2% -> 0.22 | G13: 143334
A14: PRORATA IR / REVENUS PROFESSIONNELS | B14: =IF(DONNES!C11="TANGER",IF(B2<G17,B2*B13/TOTR,B2*F17),B2/TOTR*B13) -> 112435.8801 | E14: EX 2012 | F14: =+F13+2% -> 0.24 | G14: 172000
A15: PRORATA IR / REVENUS AGRICOLES (taux réduit 20%) | B15: =B3*0.2 -> 0 | E15: EX 2013 | F15: =+F14+2% -> 0.26 | G15: 203333
A16: PRORATA IR / REVENUS FONCIERS | B16: =+B13*B4/TOTR -> 152995.4273 | E16: EX 2014 | F16: =+F15+2% -> 0.28 | G16: 244000
A17: PRORATA IR / REVENUS SALARIAUX | B17: =+B13*B5/TOTR -> 62736.82351 | E17: EX 2015 | F17: 0.3 | G17: 305000
A18: PRORATA IR / REVENUS CAPITAUX MOBILIERS | B18: =+B6*B13/TOTR -> 18766.66653
A19: PRORATA IR / REVENUS DE SOURCE ETRANGERE | B19: =+B13*B7/TOTR -> 27950.20259
A20: TOTAL IR | B20: =ROUNDUP(SUM(B14:B19),0) -> 374885
A22: I - COTISATION MINIMALE ACQUITTEE
A23: Cotisation Minimale versée / REV PROF | B23: =+DONNES!F5 -> 214145
A24: Cotisation Minimale versée / REV AGRICOLE | B24: =+DONNES!G5 -> 2745
B25: =+B23+B24 -> 216890
A26: II - IMPOT RETENU A LA SOURCE
A27: IR retenu sur salaire | B27: =DONNES!F10 -> 65464
A28: Au titre des produits de placement à revenu fixe soumis au taux de 20% : | B28: =SUM('REV-CAPMOB'!AQ63:AT63) -> 10520
A29: Montant de l'impôt étranger acquitté (ou théorique en cas d'exonération) : | B29: =SUM('REV-ETRANGER'!L22:P22) -> 0
B30: =SUM(B27:B29) -> 75984
A31: C - REDUCTION D'IMPOT
A32: a - Pour charge de famille : | B32: =DONNES!F17 -> 1440 | D32: Remarques sur la différence entre l'IR barème et l'IR définitif
A33: b - Au titre des retraites de source étrangère : | B33: =DONNES!F18 -> 5752
B34: =SUM(B32:B33) -> 7192 | D34: Total IR dû / Exercice 2015 ===> | G34: =+B36+B34+B30+B25 -> 479340 | H34: détails :
D35: =IF(G34>B20," Cet écart provient de la Cotisation minimale payée sur le BNR ou BNS=>","Aucun écart sur la CM ") -> Cet écart provient de la Cotisation minimale payée sur le BNR ou BNS=> | G35: =+G34-B20 -> 104455 | H35: =ROUNDUP(IF(B23>B14,B23-B14,0)+IF(B24>B15,B24-B15,0),0) -> 104455
A36: Montant restant à verser | B36: =ROUNDUP(SUM(B16:B19)+MAX(B14,B23)+MAX(B15,B24)-B25-B30-B34,0) -> 179274 | D36: =IF(B13>B20," Cet écart provient de la différence de taux prévu pour le BNR ou BNS=>","Aucun écart sur L'IR ") -> Aucun écart sur L'IR | G36: =+B13-B20 -> 0 | H36: =+ROUNDUP((B13/Q2*B3)-B15+(B13/Q2*B2)-B14,0) -> 0

Sheet VERSEMENT IR
W12: ANNEE : | AE12: 2015
V14: Du | X14: 2015-01-01 | AE14: Au | AG14: 2015-12-31
C16: IDENTITE DE LA PARTIE VERSANTE
E18: N° C.I.N ou carte de séjour : | R18: =DONNES!C8 -> K6333333 | AD18: N° d'identification fiscale : | AQ18: =+DONNES!C6 -> 80422222
E20: Nom, prénom : | N20: =+DONNES!C4 -> ABDO TEST
E22: Adresse du domicile fiscal ou du principal établissement :
E23: =+DONNES!C10 -> AVE MOHAMED V N° 05
AM24: VILLE : | AQ24: =+DONNES!C11 -> CASABLANCA
B27: CADRE A SERVIR PAR LA PARTIE VERSANTE
B28: Montant des droits en principal (2) A | R28: pénalité de 5% ou 10% (3) B | AF28: Majoration de retard de 5% et 0,5% (3) C | AS28: Total (arrondi au dirham supérieur) A+B+C
B30: =+'CALCUL IR'!B36 -> 179274 | AS30: =ROUNDUP(B30+R30+AF30,0) -> 179274 | BE30: =AS30 -> 179274
C32: Total en lettres : | L32: ='CHIFFRE EN LETTERE'!B2 -> cent soixante-dix-neuf mille deux cent soixante-quatorze DH
AK35: A | AM35: =+DONNES!C11 -> CASABLANCA | AU35: le | AV35: =TODAY() -> 2016-04-29
AO36: Cachet et signature

Sheet CHIFFRE EN LETTERE (hidden)
A1: MONTANT | B1: EN LETTRE
A2: =+'VERSEMENT IR'!AS30 -> 179274 | B2: =(X2&Y2&Z2&AA2&AB2&AC2&AD2&AE2&AF2&AG2&AH2&AI2&AJ2&AK2&AL2&AM2&AN2&AO2&AP2) -> cent soixante-dix-neuf mille deux cent soixante-quatorze DH | C2: =UPPER(MID(B2,1,1))&MID(B2,2,168) -> Cent soixante-dix-neuf mille deux cent soixante-quatorze DH | D2: =INT(A2/1000000) -> 0 | E2: =INT((A2-D2*1000000)/1000) -> 179 | F2: =INT(A2-D2*1000000-E2*1000) -> 274 | G2: =ROUND(A2-D2*1000000-E2*1000-F2,2)*100 -> 0 | H2: =D2-M2*100 -> 0 | J2: =E2-P2*100 -> 79 | K2: =ROUND(F2-S2*100,0) -> 74 | L2: =G2 -> 0 | M2: =INT(D2/100) -> 0 | N2: =INT((D2-M2*100)/10) -> 0 | O2: =D2-M2*100-N2*10 -> 0 | P2: =INT(E2/100) -> 1 | Q2: =INT((E2-P2*100)/10) -> 7 | R2: =E2-P2*100-Q2*10 -> 9 | S2: =INT(F2/100) -> 2 | T2: =INT((F2-S2*100)/10) -> 7 | U2: =F2-S2*100-T2*10 -> 4 | V2: =INT(G2/10) -> 0 | W2: =ROUND(G2-V2*10,0) -> 0 | X2: =IF(M2=0,"",IF(M2=1,"",IF(M2=2,"deux ",IF(M2=3,"trois ",IF(M2=4,"quatre ",IF(M2=5,"cinq ",AQ2)))))) ->  | Y2: =IF(M2=0,"",IF(M2<2,"cent ",AR2)) ->  | Z2: =IF(N2=1,AS2,IF(N2=7,BM2,IF(N2=9,CC2,CL2))) ->  | AA2: =IF(H2=11,"",IF(H2=12,"",IF(H2=13,"",IF(H2=14,"",IF(H2=15,"",IF(H2=16,"",AT2)))))) ->  | AB2: =IF(D2=0,"",IF(D2<2,"million ","millions ")) ->  | AC2: =IF(I2=1,"",IF(P2=0,"",IF(P2=1,"",IF(P2=2,"deux ",IF(P2=3,"trois ",IF(P2=4,"quatre ",IF(P2=5,"cinq ",AU2))))))) ->  | AD2: =IF(P2=0,"",IF(P2<2,"cent ",AV2)) -> cent | AE2: =IF(Q2=1,AW2,IF(Q2=7,BO2,IF(Q2=9,CD2,CM2))) -> soixante-dix-neuf | AF2: =IF(E2=1,"",AX2) ->  | AG2: =IF(E2>0,"mille ","") -> mille | AH2: =IF(INT(A2)=0,"zéro ",IF(S2=0,"",IF(S2=1,"",IF(S2=2,"deux ",IF(S2=3,"trois ",IF(S2=4,"quatre ",IF(S2=5,"cinq ",AY2))))))) -> deux | AI2: =IF(S2=0,"",IF(S2<2,"cent ",AZ2)) -> cent | AJ2: =IF(T2=1,BA2,IF(T2=7,BQ2,IF(T2=9,CF2,CN2))) -> soixante-quatorze | AK2: =IF(K2=11,"",IF(K2=12,"",IF(K2=13,"",IF(K2=14,"",IF(K2=15,"",IF(K2=16,"",BB2)))))) ->  | AL2: =IF(INT(A2<2),"DH ","DH") -> DH | AM2: =IF(G2>0," et ","") ->  | AN2: =IF(V2=1,BC2,IF(V2=7,BS2,IF(V2=9,CG2,CO2))) ->  | AO2: =IF(L2=11,"",IF(L2=12,"",IF(L2=13,"",IF(L2=14,"",IF(L2=15,"",IF(L2=16,"",BD2)))))) ->  | AP2: =IF(G2=0,"",IF(G2<2,"centime","centimes")) ->  | AQ2: =IF(D2=0," ",IF(M2=6,"six ",IF(M2=7,"sept ",IF(M2=8,"huit ",IF(M2=9,"neuf ",))))) ->  | AR2: =IF(H2>0,"cent ", "cents ") -> cents | AS2: =IF(H2=10,"dix ",IF(H2=11,"onze ",IF(H2=12,"douze ",IF(H2=13,"treize ",IF(H2=14,"quatorze ",IF(H2=15,"quinze ",BE2)))))) ->  | AT2: =IF(H2=17,"",IF(H2=18,"",IF(H2=19,"",BF2))) ->  | AU2: =IF(P2=6,"six ",IF(P2=7,"sept ",IF(P2=8,"huit ",IF(P2=9,"neuf ",)))) -> 0 | AV2: =IF(J2>0,"cent ", "cents ") -> cent | AW2: =IF(J2=10,"dix ",IF(J2=11,"onze ",IF(J2=12,"douze ",IF(J2=13,"treize ",IF(J2=14,"quatorze ",IF(J2=15,"quinze ",BG2)))))) -> soixante-dix-neuf | AX2: =IF(J2=11,"",IF(J2=12,"",IF(J2=13,"",IF(J2=14,"",IF(J2=15,"",IF(J2=16,"",BH2)))))) ->  | AY2: =IF(S2=6,"six ",IF(S2=7,"sept ",IF(S2=8,"huit ",IF(S2=9,"neuf ",)))) -> 0 | AZ2: =IF(K2>0,"cent ", "cents ") -> cent | BA2: =IF(K2=10,"dix ",IF(K2=11,"onze ",IF(K2=12,"douze ",IF(K2=13,"treize ",IF(K2=14,"quatorze ",IF(K2=15,"quinze ",BI2)))))) -> soixante-quatorze | BB2: =IF(K2=17,"",IF(K2=18,"",IF(K2=19,"",BJ2))) ->  | BC2: =IF(L2=10,"dix ",IF(L2=11,"onze ",IF(L2=12,"douze ",IF(L2=13,"treize ",IF(L2=14,"quatorze ",IF(L2=15,"quinze ",BK2)))))) ->  | BD2: =IF(L2=17,"",IF(L2=18,"",IF(L2=19,"",BL2))) ->  | BE2: =IF(H2=16,"seize ",IF(H2=17,"dix-sept ",IF(H2=18,"dix-huit ",IF(H2=19,"dix-neuf ",BM2)))) ->  | BF2: =IF(H2=21,"et un ",IF(H2=31,"et un ",IF(H2=41,"et un ",IF(H2=51,"et un ",IF(H2=61,"et un ",BN2))))) ->  | BG2: =IF(J2=16,"seize ",IF(J2=17,"dix-sept ",IF(J2=18,"dix-huit ",IF(J2=19,"dix-neuf ",BO2)))) -> soixante-dix-neuf | BH2: =IF(J2=17,"",IF(J2=18,"",IF(J2=19,"",BP2))) ->  | BI2: =IF(K2=16,"seize ",IF(K2=17,"dix-sept ",IF(K2=18,"dix-huit ",IF(K2=19,"dix-neuf ",BQ2)))) -> soixante-quatorze | BJ2: =IF(K2=21,"et un ",IF(K2=31,"et un ",IF(K2=41,"et un ",IF(K2=51,"et un ",IF(K2=61,"et un ",BR2))))) ->  | BK2: =IF(L2=16,"seize ",IF(L2=17,"dix-sept ",IF(L2=18,"dix-huit ",IF(L2=19,"dix-neuf ",BS2)))) ->  | BL2: =IF(L2=21,"et un ",IF(L2=31,"et un ",IF(L2=41,"et un ",IF(L2=51,"et un ",IF(L2=61,"et un ",BT2))))) ->  | BM2: =IF(H2=70,"soixante-dix ",IF(H2=71,"soixante et onze ",IF(H2=72,"soixante-douze ",IF(H2=73,"soixante-treize ",IF(H2=74,"soixante-quatorze ",IF(H2=75,"soixante-quinze ",BU2)))))) ->  | BN2: =IF(N2=9,"",IF(N2=7,"",IF(O2=0,"",IF(O2=1,"un ",IF(O2=2,"deux ",IF(O2=3,"trois ",IF(O2=4,"quatre ",IF(O2=5,"cinq ",BV2)))))))) ->  | BO2: =IF(J2=70,"soixante-dix ",IF(J2=71,"soixante et onze ",IF(J2=72,"soixante-douze ",IF(J2=73,"soixante-treize ",IF(J2=74,"soixante-quatorze ",IF(J2=75,"soixante-quinze ",BW2)))))) -> soixante-dix-neuf | BP2: =IF(J2=21,"et un ",IF(J2=31,"et un ",IF(J2=41,"et un ",IF(J2=51,"et un ",IF(J2=61,"et un ",BX2))))) ->  | BQ2: =IF(K2=70,"soixante-dix ",IF(K2=71,"soixante et onze ",IF(K2=72,"soixante-douze ",IF(K2=73,"soixante-treize ",IF(K2=74,"soixante-quatorze ",IF(K2=75,"soixante-quinze ",BY2)))))) -> soixante-quatorze | BR2: =IF(T2=9,"",IF(T2=7,"",IF(U2=0,"",IF(U2=1,"un ",IF(U2=2,"deux ",IF(U2=3,"trois ",IF(U2=4,"quatre ",IF(U2=5,"cinq ",BZ2)))))))) ->  | BS2: =IF(L2=70,"soixante-dix ",IF(L2=71,"soixante et onze ",IF(L2=72,"soixante-douze ",IF(L2=73,"soixante-treize ",IF(L2=74,"soixante-quatorze ",IF(L2=75,"soixante-quinze ",CA2)))))) ->  | BT2: =IF(V2=9,"",IF(V2=7,"",IF(W2=0,"",IF(W2=1,"un ",IF(W2=2,"deux ",IF(W2=3,"trois ",IF(W2=4,"quatre ",IF(W2=5,"cinq ",CB2)))))))) ->  | BU2: =IF(H2=76,"soixante-seize ",IF(H2=77,"soixante-dix-sept ",IF(H2=78,"soixante-dix-huit ",IF(H2=79,"soixante-dix-neuf ",CC2)))) ->  | BV2: =IF(N2=9,"",IF(O2=6,"six ",IF(O2=7,"sept ",IF(O2=8,"huit ",IF(O2=9,"neuf ",))))) -> 0 | BW2: =IF(J2=76,"soixante-seize ",IF(J2=77,"soixante-dix-sept ",IF(J2=78,"soixante-dix-huit ",IF(J2=79,"soixante-dix-neuf ",CD2)))) -> soixante-dix-neuf | BX2: =IF(Q2=9,"",IF(Q2=7,"",IF(R2=0,"",IF(R2=1,"un ",IF(R2=2,"deux ",IF(R2=3,"trois ",IF(R2=4,"quatre ",IF(R2=5,"cinq ",CE2)))))))) ->  | BY2: =IF(K2=76,"soixante-seize ",IF(K2=77,"soixante-dix-sept ",IF(K2=78,"soixante-dix-huit ",IF(K2=79,"soixante-dix-neuf ",CF2)))) ->  | BZ2: =IF(T2=9,"",IF(U2=6,"six ",IF(U2=7,"sept ",IF(U2=8,"huit ",IF(U2=9,"neuf ",))))) -> 0 | CA2: =IF(L2=76,"soixante-seize ",IF(L2=77,"soixante-dix-sept ",IF(L2=78,"soixante-dix-huit ",IF(L2=79,"soixante-dix-neuf ",CG2)))) ->  | CB2: =IF(V2=9,"",IF(W2=6,"six ",IF(W2=7,"sept ",IF(W2=8,"huit ",IF(W2=9,"neuf ",))))) -> 0 | CC2: =IF(H2=90,"quatre-vingt-dix ",IF(H2=91,"quatre-vingt-onze ",IF(H2=92,"quatre-vingt-douze ",IF(H2=93,"quatre-vingt-treize ",IF(H2=94,"quatre-vingt-quatorze ",IF(H2=95,"quatre-vingt-quinze ",CH2)))))) ->  | CD2: =IF(J2=90,"quatre-vingt-dix ",IF(J2=91,"quatre-vingt-onze ",IF(J2=92,"quatre-vingt-douze ",IF(J2=93,"quatre-vingt-treize ",IF(J2=94,"quatre-vingt-quatorze ",IF(J2=95,"quatre-vingt-quinze ",CI2)))))) ->  | CE2: =IF(Q2=9,"",IF(R2=6,"six ",IF(R2=7,"sept ",IF(R2=8,"huit ",IF(R2=9,"neuf ",))))) -> neuf | CF2: =IF(K2=90,"quatre-vingt-dix ",IF(K2=91,"quatre-vingt-onze ",IF(K2=92,"quatre-vingt-douze ",IF(K2=93,"quatre-vingt-treize ",IF(K2=94,"quatre-vingt-quatorze ",IF(K2=95,"quatre-vingt-quinze ",CJ2)))))) ->  | CH2: =IF(H2=96,"quatre-vingt-seize ",IF(H2=97,"quatre-vingt-dix-sept ",IF(H2=98,"quatre-vingt-dix-huit ",IF(H2=99,"quatre-vingt-dix-neuf ",CL2)))) ->  | CI2: =IF(J2=96,"quatre-vingt-seize ",IF(J2=97,"quatre-vingt-dix-sept ",IF(J2=98,"quatre-vingt-dix-huit ",IF(J2=99,"quatre-vingt-dix-neuf ",CM2)))) ->  | CL2: =IF(N2=2,"vingt ",IF(N2=3,"trente ",IF(N2=4,"quarante ",IF(N2=5,"cinquante ",CP2)))) ->  | CM2: =IF(Q2=2,"vingt ",IF(Q2=3,"trente ",IF(Q2=4,"quarante ",IF(Q2=5,"cinquante ",CQ2)))) ->  | CN2: =IF(T2=2,"vingt ",IF(T2=3,"trente ",IF(T2=4,"quarante ",IF(T2=5,"cinquante ",CR2)))) ->  | CO2: =IF(V2=2,"vingt ",IF(V2=3,"trente ",IF(V2=4,"quarante ",IF(V2=5,"cinquante ",CS2)))) ->  | CP2: =IF(N2=6,"soixante ",IF(H2=80,"quatre-vingts ",IF(N2=8,"quatre-vingt-",""))) ->  | CQ2: =IF(Q2=6,"soixante ",IF(J2=80,"quatre-vingts ",IF(Q2=8,"quatre-vingt-",""))) ->  | CR2: =IF(T2=6,"soixante ",IF(K2=80,"quatre-vingts ",IF(T2=8,"quatre-vingt-",""))) ->  | CS2: =IF(V2=6,"soixante ",IF(L2=80,"quatre-vingts ",IF(V2=8,"quatre-vingt-",""))) -> 
B3: =(X3&Y3&Z3&AA3&AB3&AC3&AD3&AE3&AF3&AG3&AH3&AI3&AJ3&AK3&AL3&AM3&AN3&AO3&AP3) -> zéro DH | C3: Zéro DH | D3: 0 | E3: 0 | F3: 0 | G3: 0 | H3: 0 | J3: 0 | K3: 0 | L3: 0 | M3: 0 | N3: 0 | O3: 0 | P3: 0 | Q3: 0 | R3: 0 | S3: 0 | T3: 0 | U3: 0 | V3: 0 | W3: 0 | AH3: zéro | AL3: DH | AR3: cents | AU3: 0 | AV3: cents | AY3: 0 | AZ3: cents | BV3: 0 | BZ3: 0 | CB3: 0 | CE3: 0
B4: zéro DH | C4: Zéro DH | D4: 0 | E4: 0 | F4: 0 | G4: 0 | H4: 0 | J4: 0 | K4: 0 | L4: 0 | M4: 0 | N4: 0 | O4: 0 | P4: 0 | Q4: 0 | R4: 0 | S4: 0 | T4: 0 | U4: 0 | V4: 0 | W4: 0 | AH4: zéro | AL4: DH | AR4: cents | AU4: 0 | AV4: cents | AY4: 0 | AZ4: cents | BV4: 0 | BZ4: 0 | CB4: 0 | CE4: 0
B5: zéro DH | C5: Zéro DH | D5: 0 | E5: 0 | F5: 0 | G5: 0 | H5: 0 | J5: 0 | K5: 0 | L5: 0 | M5: 0 | N5: 0 | O5: 0 | P5: 0 | Q5: 0 | R5: 0 | S5: 0 | T5: 0 | U5: 0 | V5: 0 | W5: 0 | AH5: zéro | AL5: DH | AR5: cents | AU5: 0 | AV5: cents | AY5: 0 | AZ5: cents | BV5: 0 | BZ5: 0 | CB5: 0 | CE5: 0
B6: zéro DH | C6: Zéro DH | D6: 0 | E6: 0 | F6: 0 | G6: 0 | H6: 0 | J6: 0 | K6: 0 | L6: 0 | M6: 0 | N6: 0 | O6: 0 | P6: 0 | Q6: 0 | R6: 0 | S6: 0 | T6: 0 | U6: 0 | V6: 0 | W6: 0 | AH6: zéro | AL6: DH | AR6: cents | AU6: 0 | AV6: cents | AY6: 0 | AZ6: cents | BV6: 0 | BZ6: 0 | CB6: 0 | CE6: 0
B7: zéro DH | C7: Zéro DH | D7: 0 | E7: 0 | F7: 0 | G7: 0 | H7: 0 | J7: 0 | K7: 0 | L7: 0 | M7: 0 | N7: 0 | O7: 0 | P7: 0 | Q7: 0 | R7: 0 | S7: 0 | T7: 0 | U7: 0 | V7: 0 | W7: 0 | AH7: zéro | AL7: DH | AR7: cents | AU7: 0 | AV7: cents | AY7: 0 | AZ7: cents | BV7: 0 | BZ7: 0 | CB7: 0 | CE7: 0
B8: =(X8&Y8&Z8&AA8&AB8&AC8&AD8&AE8&AF8&AG8&AH8&AI8&AJ8&AK8&AL8&AM8&AN8&AO8&AP8) -> zéro DH | C8: Zéro DH | D8: 0 | E8: 0 | F8: 0 | G8: 0 | H8: 0 | J8: 0 | K8: 0 | L8: 0 | M8: 0 | N8: 0 | O8: 0 | P8: 0 | Q8: 0 | R8: 0 | S8: 0 | T8: 0 | U8: 0 | V8: 0 | W8: 0 | AH8: zéro | AL8: DH | AR8: cents | AU8: 0 | AV8: cents | AY8: 0 | AZ8: cents | BV8: 0 | BZ8: 0 | CB8: 0 | CE8: 0
B9: zéro DH | C9: Zéro DH | D9: 0 | E9: 0 | F9: 0 | G9: 0 | H9: 0 | J9: 0 | K9: 0 | L9: 0 | M9: 0 | N9: 0 | O9: 0 | P9: 0 | Q9: 0 | R9: 0 | S9: 0 | T9: 0 | U9: 0 | V9: 0 | W9: 0 | AH9: zéro | AL9: DH | AR9: cents | AU9: 0 | AV9: cents | AY9: 0 | AZ9: cents | BV9: 0 | BZ9: 0 | CB9: 0 | CE9: 0
B10: zéro DH | C10: Zéro DH | D10: 0 | E10: 0 | F10: 0 | G10: 0 | H10: 0 | J10: 0 | K10: 0 | L10: 0 | M10: 0 | N10: 0 | O10: 0 | P10: 0 | Q10: 0 | R10: 0 | S10: 0 | T10: 0 | U10: 0 | V10: 0 | W10: 0 | AH10: zéro | AL10: DH | AR10: cents | AU10: 0 | AV10: cents | AY10: 0 | AZ10: cents | BV10: 0 | BZ10: 0 | CB10: 0 | CE10: 0
B11: zéro DH | C11: Zéro DH | D11: 0 | E11: 0 | F11: 0 | G11: 0 | H11: 0 | J11: 0 | K11: 0 | L11: 0 | M11: 0 | N11: 0 | O11: 0 | P11: 0 | Q11: 0 | R11: 0 | S11: 0 | T11: 0 | U11: 0 | V11: 0 | W11: 0 | AH11: zéro | AL11: DH | AR11: cents | AU11: 0 | AV11: cents | AY11: 0 | AZ11: cents | BV11: 0 | BZ11: 0 | CB11: 0 | CE11: 0
B12: zéro DH | C12: Zéro DH | D12: 0 | E12: 0 | F12: 0 | G12: 0 | H12: 0 | J12: 0 | K12: 0 | L12: 0 | M12: 0 | N12: 0 | O12: 0 | P12: 0 | Q12: 0 | R12: 0 | S12: 0 | T12: 0 | U12: 0 | V12: 0 | W12: 0 | AH12: zéro | AL12: DH | AR12: cents | AU12: 0 | AV12: cents | AY12: 0 | AZ12: cents | BV12: 0 | BZ12: 0 | CB12: 0 | CE12: 0
B13: zéro DH | C13: Zéro DH | D13: 0 | E13: 0 | F13: 0 | G13: 0 | H13: 0 | J13: 0 | K13: 0 | L13: 0 | M13: 0 | N13: 0 | O13: 0 | P13: 0 | Q13: 0 | R13: 0 | S13: 0 | T13: 0 | U13: 0 | V13: 0 | W13: 0 | AH13: zéro | AL13: DH | AR13: cents | AU13: 0 | AV13: cents | AY13: 0 | AZ13: cents | BV13: 0 | BZ13: 0 | CB13: 0 | CE13: 0
B14: zéro DH | C14: Zéro DH | D14: 0 | E14: 0 | F14: 0 | G14: 0 | H14: 0 | J14: 0 | K14: 0 | L14: 0 | M14: 0 | N14: 0 | O14: 0 | P14: 0 | Q14: 0 | R14: 0 | S14: 0 | T14: 0 | U14: 0 | V14: 0 | W14: 0 | AH14: zéro | AL14: DH | AR14: cents | AU14: 0 | AV14: cents | AY14: 0 | AZ14: cents | BV14: 0 | BZ14: 0 | CB14: 0 | CE14: 0
B15: zéro DH | C15: Zéro DH | D15: 0 | E15: 0 | F15: 0 | G15: 0 | H15: 0 | J15: 0 | K15: 0 | L15: 0 | M15: 0 | N15: 0 | O15: 0 | P15: 0 | Q15: 0 | R15: 0 | S15: 0 | T15: 0 | U15: 0 | V15: 0 | W15: 0 | AH15: zéro | AL15: DH | AR15: cents | AU15: 0 | AV15: cents | AY15: 0 | AZ15: cents | BV15: 0 | BZ15: 0 | CB15: 0 | CE15: 0
B16: zéro DH | C16: Zéro DH | D16: 0 | E16: 0 | F16: 0 | G16: 0 | H16: 0 | J16: 0 | K16: 0 | L16: 0 | M16: 0 | N16: 0 | O16: 0 | P16: 0 | Q16: 0 | R16: 0 | S16: 0 | T16: 0 | U16: 0 | V16: 0 | W16: 0 | AH16: zéro | AL16: DH | AR16: cents | AU16: 0 | AV16: cents | AY16: 0 | AZ16: cents | BV16: 0 | BZ16: 0 | CB16: 0 | CE16: 0
B17: zéro DH | C17: Zéro DH | D17: 0 | E17: 0 | F17: 0 | G17: 0 | H17: 0 | J17: 0 | K17: 0 | L17: 0 | M17: 0 | N17: 0 | O17: 0 | P17: 0 | Q17: 0 | R17: 0 | S17: 0 | T17: 0 | U17: 0 | V17: 0 | W17: 0 | AH17: zéro | AL17: DH | AR17: cents | AU17: 0 | AV17: cents | AY17: 0 | AZ17: cents | BV17: 0 | BZ17: 0 | CB17: 0 | CE17: 0
B18: zéro DH | C18: Zéro DH | D18: 0 | E18: 0 | F18: 0 | G18: 0 | H18: 0 | J18: 0 | K18: 0 | L18: 0 | M18: 0 | N18: 0 | O18: 0 | P18: 0 | Q18: 0 | R18: 0 | S18: 0 | T18: 0 | U18: 0 | V18: 0 | W18: 0 | AH18: zéro | AL18: DH | AR18: cents | AU18: 0 | AV18: cents | AY18: 0 | AZ18: cents | BV18: 0 | BZ18: 0 | CB18: 0 | CE18: 0
B19: zéro DH | C19: Zéro DH | D19: 0 | E19: 0 | F19: 0 | G19: 0 | H19: 0 | J19: 0 | K19: 0 | L19: 0 | M19: 0 | N19: 0 | O19: 0 | P19: 0 | Q19: 0 | R19: 0 | S19: 0 | T19: 0 | U19: 0 | V19: 0 | W19: 0 | AH19: zéro | AL19: DH | AR19: cents | AU19: 0 | AV19: cents | AY19: 0 | AZ19: cents | BV19: 0 | BZ19: 0 | CB19: 0 | CE19: 0
B20: zéro DH | C20: Zéro DH | D20: 0 | E20: 0 | F20: 0 | G20: 0 | H20: 0 | J20: 0 | K20: 0 | L20: 0 | M20: 0 | N20: 0 | O20: 0 | P20: 0 | Q20: 0 | R20: 0 | S20: 0 | T20: 0 | U20: 0 | V20: 0 | W20: 0 | AH20: zéro | AL20: DH | AR20: cents | AU20: 0 | AV20: cents | AY20: 0 | AZ20: cents | BV20: 0 | BZ20: 0 | CB20: 0 | CE20: 0
B21: zéro DH | C21: Zéro DH | D21: 0 | E21: 0 | F21: 0 | G21: 0 | H21: 0 | J21: 0 | K21: 0 | L21: 0 | M21: 0 | N21: 0 | O21: 0 | P21: 0 | Q21: 0 | R21: 0 | S21: 0 | T21: 0 | U21: 0 | V21: 0 | W21: 0 | AH21: zéro | AL21: DH | AR21: cents | AU21: 0 | AV21: cents | AY21: 0 | AZ21: cents | BV21: 0 | BZ21: 0 | CB21: 0 | CE21: 0
B22: zéro DH | C22: Zéro DH | D22: 0 | E22: 0 | F22: 0 | G22: 0 | H22: 0 | J22: 0 | K22: 0 | L22: 0 | M22: 0 | N22: 0 | O22: 0 | P22: 0 | Q22: 0 | R22: 0 | S22: 0 | T22: 0 | U22: 0 | V22: 0 | W22: 0 | AH22: zéro | AL22: DH | AR22: cents | AU22: 0 | AV22: cents | AY22: 0 | AZ22: cents | BV22: 0 | BZ22: 0 | CB22: 0 | CE22: 0
B23: zéro DH | C23: Zéro DH | D23: 0 | E23: 0 | F23: 0 | G23: 0 | H23: 0 | J23: 0 | K23: 0 | L23: 0 | M23: 0 | N23: 0 | O23: 0 | P23: 0 | Q23: 0 | R23: 0 | S23: 0 | T23: 0 | U23: 0 | V23: 0 | W23: 0 | AH23: zéro | AL23: DH | AR23: cents | AU23: 0 | AV23: cents | AY23: 0 | AZ23: cents | BV23: 0 | BZ23: 0 | CB23: 0 | CE23: 0
B24: zéro DH | C24: Zéro DH | D24: 0 | E24: 0 | F24: 0 | G24: 0 | H24: 0 | J24: 0 | K24: 0 | L24: 0 | M24: 0 | N24: 0 | O24: 0 | P24: 0 | Q24: 0 | R24: 0 | S24: 0 | T24: 0 | U24: 0 | V24: 0 | W24: 0 | AH24: zéro | AL24: DH | AR24: cents | AU24: 0 | AV24: cents | AY24: 0 | AZ24: cents | BV24: 0 | BZ24: 0 | CB24: 0 | CE24: 0
B25: zéro DH | C25: Zéro DH | D25: 0 | E25: 0 | F25: 0 | G25: 0 | H25: 0 | J25: 0 | K25: 0 | L25: 0 | M25: 0 | N25: 0 | O25: 0 | P25: 0 | Q25: 0 | R25: 0 | S25: 0 | T25: 0 | U25: 0 | V25: 0 | W25: 0 | AH25: zéro | AL25: DH | AR25: cents | AU25: 0 | AV25: cents | AY25: 0 | AZ25: cents | BV25: 0 | BZ25: 0 | CB25: 0 | CE25: 0
B26: zéro DH | C26: Zéro DH | D26: 0 | E26: 0 | F26: 0 | G26: 0 | H26: 0 | J26: 0 | K26: 0 | L26: 0 | M26: 0 | N26: 0 | O26: 0 | P26: 0 | Q26: 0 | R26: 0 | S26: 0 | T26: 0 | U26: 0 | V26: 0 | W26: 0 | AH26: zéro | AL26: DH | AR26: cents | AU26: 0 | AV26: cents | AY26: 0 | AZ26: cents | BV26: 0 | BZ26: 0 | CB26: 0 | CE26: 0
B27: zéro DH | C27: Zéro DH | D27: 0 | E27: 0 | F27: 0 | G27: 0 | H27: 0 | J27: 0 | K27: 0 | L27: 0 | M27: 0 | N27: 0 | O27: 0 | P27: 0 | Q27: 0 | R27: 0 | S27: 0 | T27: 0 | U27: 0 | V27: 0 | W27: 0 | AH27: zéro | AL27: DH | AR27: cents | AU27: 0 | AV27: cents | AY27: 0 | AZ27: cents | BV27: 0 | BZ27: 0 | CB27: 0 | CE27: 0
B28: zéro DH | C28: Zéro DH | D28: 0 | E28: 0 | F28: 0 | G28: 0 | H28: 0 | J28: 0 | K28: 0 | L28: 0 | M28: 0 | N28: 0 | O28: 0 | P28: 0 | Q28: 0 | R28: 0 | S28: 0 | T28: 0 | U28: 0 | V28: 0 | W28: 0 | AH28: zéro | AL28: DH | AR28: cents | AU28: 0 | AV28: cents | AY28: 0 | AZ28: cents | BV28: 0 | BZ28: 0 | CB28: 0 | CE28: 0
B29: zéro DH | C29: Zéro DH | D29: 0 | E29: 0 | F29: 0 | G29: 0 | H29: 0 | J29: 0 | K29: 0 | L29: 0 | M29: 0 | N29: 0 | O29: 0 | P29: 0 | Q29: 0 | R29: 0 | S29: 0 | T29: 0 | U29: 0 | V29: 0 | W29: 0 | AH29: zéro | AL29: DH | AR29: cents | AU29: 0 | AV29: cents | AY29: 0 | AZ29: cents | BV29: 0 | BZ29: 0 | CB29: 0 | CE29: 0
B30: zéro DH | C30: Zéro DH | D30: 0 | E30: 0 | F30: 0 | G30: 0 | H30: 0 | J30: 0 | K30: 0 | L30: 0 | M30: 0 | N30: 0 | O30: 0 | P30: 0 | Q30: 0 | R30: 0 | S30: 0 | T30: 0 | U30: 0 | V30: 0 | W30: 0 | AH30: zéro | AL30: DH | AR30: cents | AU30: 0 | AV30: cents | AY30: 0 | AZ30: cents | BV30: 0 | BZ30: 0 | CB30: 0 | CE30: 0
B31: zéro DH | C31: Zéro DH | D31: 0 | E31: 0 | F31: 0 | G31: 0 | H31: 0 | J31: 0 | K31: 0 | L31: 0 | M31: 0 | N31: 0 | O31: 0 | P31: 0 | Q31: 0 | R31: 0 | S31: 0 | T31: 0 | U31: 0 | V31: 0 | W31: 0 | AH31: zéro | AL31: DH | AR31: cents | AU31: 0 | AV31: cents | AY31: 0 | AZ31: cents | BV31: 0 | BZ31: 0 | CB31: 0 | CE31: 0
B32: zéro DH | C32: Zéro DH | D32: 0 | E32: 0 | F32: 0 | G32: 0 | H32: 0 | J32: 0 | K32: 0 | L32: 0 | M32: 0 | N32: 0 | O32: 0 | P32: 0 | Q32: 0 | R32: 0 | S32: 0 | T32: 0 | U32: 0 | V32: 0 | W32: 0 | AH32: zéro | AL32: DH | AR32: cents | AU32: 0 | AV32: cents | AY32: 0 | AZ32: cents | BV32: 0 | BZ32: 0 | CB32: 0 | CE32: 0
B33: zéro DH | C33: Zéro DH | D33: 0 | E33: 0 | F33: 0 | G33: 0 | H33: 0 | J33: 0 | K33: 0 | L33: 0 | M33: 0 | N33: 0 | O33: 0 | P33: 0 | Q33: 0 | R33: 0 | S33: 0 | T33: 0 | U33: 0 | V33: 0 | W33: 0 | AH33: zéro | AL33: DH | AR33: cents | AU33: 0 | AV33: cents | AY33: 0 | AZ33: cents | BV33: 0 | BZ33: 0 | CB33: 0 | CE33: 0
B34: zéro DH | C34: Zéro DH | D34: 0 | E34: 0 | F34: 0 | G34: 0 | H34: 0 | J34: 0 | K34: 0 | L34: 0 | M34: 0 | N34: 0 | O34: 0 | P34: 0 | Q34: 0 | R34: 0 | S34: 0 | T34: 0 | U34: 0 | V34: 0 | W34: 0 | AH34: zéro | AL34: DH | AR34: cents | AU34: 0 | AV34: cents | AY34: 0 | AZ34: cents | BV34: 0 | BZ34: 0 | CB34: 0 | CE34: 0 | CF34: =IF(K34=90,"quatre-vingt-dix ",IF(K34=91,"quatre-vingt-onze ",IF(K34=92,"quatre-vingt-douze ",IF(K34=93,"quatre-vingt-treize ",IF(K34=94,"quatre-vingt-quatorze ",IF(K34=95,"quatre-vingt-quinze ",CJ34)))))) ->  | CI34: =IF(J34=96,"quatre-vingt-seize ",IF(J34=97,"quatre-vingt-dix-sept ",IF(J34=98,"quatre-vingt-dix-huit ",IF(J34=99,"quatre-vingt-dix-neuf ",CM34)))) -> 
B35: zéro DH | C35: Zéro DH | D35: 0 | E35: 0 | F35: 0 | G35: 0 | H35: 0 | J35: 0 | K35: 0 | L35: 0 | M35: 0 | N35: 0 | O35: 0 | P35: 0 | Q35: 0 | R35: 0 | S35: 0 | T35: 0 | U35: 0 | V35: 0 | W35: 0 | AH35: zéro | AL35: DH | AR35: cents | AU35: 0 | AV35: cents | AY35: 0 | AZ35: cents | BV35: 0 | BZ35: 0 | CB35: 0 | CE35: 0
B36: zéro DH | C36: Zéro DH | D36: 0 | E36: 0 | F36: 0 | G36: 0 | H36: 0 | J36: 0 | K36: 0 | L36: 0 | M36: 0 | N36: 0 | O36: 0 | P36: 0 | Q36: 0 | R36: 0 | S36: 0 | T36: 0 | U36: 0 | V36: 0 | W36: 0 | AH36: zéro | AL36: DH | AR36: cents | AU36: 0 | AV36: cents | AY36: 0 | AZ36: cents | BV36: 0 | BZ36: 0 | CB36: 0 | CE36: 0
B37: zéro DH | C37: Zéro DH | D37: 0 | E37: 0 | F37: 0 | G37: 0 | H37: 0 | J37: 0 | K37: 0 | L37: 0 | M37: 0 | N37: 0 | O37: 0 | P37: 0 | Q37: 0 | R37: 0 | S37: 0 | T37: 0 | U37: 0 | V37: 0 | W37: 0 | AH37: zéro | AL37: DH | AR37: cents | AU37: 0 | AV37: cents | AY37: 0 | AZ37: cents | BV37: 0 | BZ37: 0 | CB37: 0 | CE37: 0
B38: zéro DH | C38: Zéro DH | D38: 0 | E38: 0 | F38: 0 | G38: 0 | H38: 0 | J38: 0 | K38: 0 | L38: 0 | M38: 0 | N38: 0 | O38: 0 | P38: 0 | Q38: 0 | R38: 0 | S38: 0 | T38: 0 | U38: 0 | V38: 0 | W38: 0 | AH38: zéro | AL38: DH | AR38: cents | AU38: 0 | AV38: cents | AY38: 0 | AZ38: cents | BV38: 0 | BZ38: 0 | CB38: 0 | CE38: 0
B39: zéro DH | C39: Zéro DH | D39: 0 | E39: 0 | F39: 0 | G39: 0 | H39: 0 | J39: 0 | K39: 0 | L39: 0 | M39: 0 | N39: 0 | O39: 0 | P39: 0 | Q39: 0 | R39: 0 | S39: 0 | T39: 0 | U39: 0 | V39: 0 | W39: 0 | AH39: zéro | AL39: DH | AR39: cents | AU39: 0 | AV39: cents | AY39: 0 | AZ39: cents | BV39: 0 | BZ39: 0 | CB39: 0 | CE39: 0
B40: zéro DH | C40: Zéro DH | D40: 0 | E40: 0 | F40: 0 | G40: 0 | H40: 0 | J40: 0 | K40: 0 | L40: 0 | M40: 0 | N40: 0 | O40: 0 | P40: 0 | Q40: 0 | R40: 0 | S40: 0 | T40: 0 | U40: 0 | V40: 0 | W40: 0 | AH40: zéro | AL40: DH | AR40: cents | AU40: 0 | AV40: cents | AY40: 0 | AZ40: cents | BV40: 0 | BZ40: 0 | CB40: 0 | CE40: 0
B41: zéro DH | C41: Zéro DH | D41: 0 | E41: 0 | F41: 0 | G41: 0 | H41: 0 | J41: 0 | K41: 0 | L41: 0 | M41: 0 | N41: 0 | O41: 0 | P41: 0 | Q41: 0 | R41: 0 | S41: 0 | T41: 0 | U41: 0 | V41: 0 | W41: 0 | AH41: zéro | AL41: DH | AR41: cents | AU41: 0 | AV41: cents | AY41: 0 | AZ41: cents | BV41: 0 | BZ41: 0 | CB41: 0 | CE41: 0
B42: zéro DH | C42: Zéro DH | D42: 0 | E42: 0 | F42: 0 | G42: 0 | H42: 0 | J42: 0 | K42: 0 | L42: 0 | M42: 0 | N42: 0 | O42: 0 | P42: 0 | Q42: 0 | R42: 0 | S42: 0 | T42: 0 | U42: 0 | V42: 0 | W42: 0 | AH42: zéro | AL42: DH | AR42: cents | AU42: 0 | AV42: cents | AY42: 0 | AZ42: cents | BV42: 0 | BZ42: 0 | CB42: 0 | CE42: 0
B43: zéro DH | C43: Zéro DH | D43: 0 | E43: 0 | F43: 0 | G43: 0 | H43: 0 | J43: 0 | K43: 0 | L43: 0 | M43: 0 | N43: 0 | O43: 0 | P43: 0 | Q43: 0 | R43: 0 | S43: 0 | T43: 0 | U43: 0 | V43: 0 | W43: 0 | AH43: zéro | AL43: DH | AR43: cents | AU43: 0 | AV43: cents | AY43: 0 | AZ43: cents | BV43: 0 | BZ43: 0 | CB43: 0 | CE43: 0
B44: zéro DH | C44: Zéro DH | D44: 0 | E44: 0 | F44: 0 | G44: 0 | H44: 0 | J44: 0 | K44: 0 | L44: 0 | M44: 0 | N44: 0 | O44: 0 | P44: 0 | Q44: 0 | R44: 0 | S44: 0 | T44: 0 | U44: 0 | V44: 0 | W44: 0 | AH44: zéro | AL44: DH | AR44: cents | AU44: 0 | AV44: cents | AY44: 0 | AZ44: cents | BV44: 0 | BZ44: 0 | CB44: 0 | CE44: 0
B45: zéro DH | C45: Zéro DH | D45: 0 | E45: 0 | F45: 0 | G45: 0 | H45: 0 | J45: 0 | K45: 0 | L45: 0 | M45: 0 | N45: 0 | O45: 0 | P45: 0 | Q45: 0 | R45: 0 | S45: 0 | T45: 0 | U45: 0 | V45: 0 | W45: 0 | AH45: zéro | AL45: DH | AR45: cents | AU45: 0 | AV45: cents | AY45: 0 | AZ45: cents | BV45: 0 | BZ45: 0 | CB45: 0 | CE45: 0
B46: zéro DH | C46: Zéro DH | D46: 0 | E46: 0 | F46: 0 | G46: 0 | H46: 0 | J46: 0 | K46: 0 | L46: 0 | M46: 0 | N46: 0 | O46: 0 | P46: 0 | Q46: 0 | R46: 0 | S46: 0 | T46: 0 | U46: 0 | V46: 0 | W46: 0 | AH46: zéro | AL46: DH | AR46: cents | AU46: 0 | AV46: cents | AY46: 0 | AZ46: cents | BV46: 0 | BZ46: 0 | CB46: 0 | CE46: 0
B47: zéro DH | C47: Zéro DH | D47: 0 | E47: 0 | F47: 0 | G47: 0 | H47: 0 | J47: 0 | K47: 0 | L47: 0 | M47: 0 | N47: 0 | O47: 0 | P47: 0 | Q47: 0 | R47: 0 | S47: 0 | T47: 0 | U47: 0 | V47: 0 | W47: 0 | AH47: zéro | AL47: DH | AR47: cents | AU47: 0 | AV47: cents | AY47: 0 | AZ47: cents | BV47: 0 | BZ47: 0 | CB47: 0 | CE47: 0
B48: zéro DH | C48: Zéro DH | D48: 0 | E48: 0 | F48: 0 | G48: 0 | H48: 0 | J48: 0 | K48: 0 | L48: 0 | M48: 0 | N48: 0 | O48: 0 | P48: 0 | Q48: 0 | R48: 0 | S48: 0 | T48: 0 | U48: 0 | V48: 0 | W48: 0 | AH48: zéro | AL48: DH | AR48: cents | AU48: 0 | AV48: cents | AY48: 0 | AZ48: cents | BV48: 0 | BZ48: 0 | CB48: 0 | CE48: 0
B49: zéro DH | C49: Zéro DH | D49: 0 | E49: 0 | F49: 0 | G49: 0 | H49: 0 | J49: 0 | K49: 0 | L49: 0 | M49: 0 | N49: 0 | O49: 0 | P49: 0 | Q49: 0 | R49: 0 | S49: 0 | T49: 0 | U49: 0 | V49: 0 | W49: 0 | AH49: zéro | AL49: DH | AR49: cents | AU49: 0 | AV49: cents | AY49: 0 | AZ49: cents | BV49: 0 | BZ49: 0 | CB49: 0 | CE49: 0
B50: zéro DH | C50: Zéro DH | D50: 0 | E50: 0 | F50: 0 | G50: 0 | H50: 0 | J50: 0 | K50: 0 | L50: 0 | M50: 0 | N50: 0 | O50: 0 | P50: 0 | Q50: 0 | R50: 0 | S50: 0 | T50: 0 | U50: 0 | V50: 0 | W50: 0 | AH50: zéro | AL50: DH | AR50: cents | AU50: 0 | AV50: cents | AY50: 0 | AZ50: cents | BV50: 0 | BZ50: 0 | CB50: 0 | CE50: 0
B51: zéro DH | C51: Zéro DH | D51: 0 | E51: 0 | F51: 0 | G51: 0 | H51: 0 | J51: 0 | K51: 0 | L51: 0 | M51: 0 | N51: 0 | O51: 0 | P51: 0 | Q51: 0 | R51: 0 | S51: 0 | T51: 0 | U51: 0 | V51: 0 | W51: 0 | AH51: zéro | AL51: DH | AR51: cents | AU51: 0 | AV51: cents | AY51: 0 | AZ51: cents | BV51: 0 | BZ51: 0 | CB51: 0 | CE51: 0
B52: zéro DH | C52: Zéro DH | D52: 0 | E52: 0 | F52: 0 | G52: 0 | H52: 0 | J52: 0 | K52: 0 | L52: 0 | M52: 0 | N52: 0 | O52: 0 | P52: 0 | Q52: 0 | R52: 0 | S52: 0 | T52: 0 | U52: 0 | V52: 0 | W52: 0 | AH52: zéro | AL52: DH | AR52: cents | AU52: 0 | AV52: cents | AY52: 0 | AZ52: cents | BV52: 0 | BZ52: 0 | CB52: 0 | CE52: 0
B53: zéro DH | C53: Zéro DH | D53: 0 | E53: 0 | F53: 0 | G53: 0 | H53: 0 | J53: 0 | K53: 0 | L53: 0 | M53: 0 | N53: 0 | O53: 0 | P53: 0 | Q53: 0 | R53: 0 | S53: 0 | T53: 0 | U53: 0 | V53: 0 | W53: 0 | AH53: zéro | AL53: DH | AR53: cents | AU53: 0 | AV53: cents | AY53: 0 | AZ53: cents | BV53: 0 | BZ53: 0 | CB53: 0 | CE53: 0
B54: zéro DH | C54: Zéro DH | D54: 0 | E54: 0 | F54: 0 | G54: 0 | H54: 0 | J54: 0 | K54: 0 | L54: 0 | M54: 0 | N54: 0 | O54: 0 | P54: 0 | Q54: 0 | R54: 0 | S54: 0 | T54: 0 | U54: 0 | V54: 0 | W54: 0 | AH54: zéro | AL54: DH | AR54: cents | AU54: 0 | AV54: cents | AY54: 0 | AZ54: cents | BV54: 0 | BZ54: 0 | CB54: 0 | CE54: 0
B55: zéro DH | C55: Zéro DH | D55: 0 | E55: 0 | F55: 0 | G55: 0 | H55: 0 | J55: 0 | K55: 0 | L55: 0 | M55: 0 | N55: 0 | O55: 0 | P55: 0 | Q55: 0 | R55: 0 | S55: 0 | T55: 0 | U55: 0 | V55: 0 | W55: 0 | AH55: zéro | AL55: DH | AR55: cents | AU55: 0 | AV55: cents | AY55: 0 | AZ55: cents | BV55: 0 | BZ55: 0 | CB55: 0 | CE55: 0
B56: zéro DH | C56: Zéro DH | D56: 0 | E56: 0 | F56: 0 | G56: 0 | H56: 0 | J56: 0 | K56: 0 | L56: 0 | M56: 0 | N56: 0 | O56: 0 | P56: 0 | Q56: 0 | R56: 0 | S56: 0 | T56: 0 | U56: 0 | V56: 0 | W56: 0 | AH56: zéro | AL56: DH | AR56: cents | AU56: 0 | AV56: cents | AY56: 0 | AZ56: cents | BV56: 0 | BZ56: 0 | CB56: 0 | CE56: 0
B57: zéro DH | C57: Zéro DH | D57: 0 | E57: 0 | F57: 0 | G57: 0 | H57: 0 | J57: 0 | K57: 0 | L57: 0 | M57: 0 | N57: 0 | O57: 0 | P57: 0 | Q57: 0 | R57: 0 | S57: 0 | T57: 0 | U57: 0 | V57: 0 | W57: 0 | AH57: zéro | AL57: DH | AR57: cents | AU57: 0 | AV57: cents | AY57: 0 | AZ57: cents | BV57: 0 | BZ57: 0 | CB57: 0 | CE57: 0
B58: zéro DH | C58: Zéro DH | D58: 0 | E58: 0 | F58: 0 | G58: 0 | H58: 0 | J58: 0 | K58: 0 | L58: 0 | M58: 0 | N58: 0 | O58: 0 | P58: 0 | Q58: 0 | R58: 0 | S58: 0 | T58: 0 | U58: 0 | V58: 0 | W58: 0 | AH58: zéro | AL58: DH | AR58: cents | AU58: 0 | AV58: cents | AY58: 0 | AZ58: cents | BV58: 0 | BZ58: 0 | CB58: 0 | CE58: 0
B59: zéro DH | C59: Zéro DH | D59: 0 | E59: 0 | F59: 0 | G59: 0 | H59: 0 | J59: 0 | K59: 0 | L59: 0 | M59: 0 | N59: 0 | O59: 0 | P59: 0 | Q59: 0 | R59: 0 | S59: 0 | T59: 0 | U59: 0 | V59: 0 | W59: 0 | AH59: zéro | AL59: DH | AR59: cents | AU59: 0 | AV59: cents | AY59: 0 | AZ59: cents | BV59: 0 | BZ59: 0 | CB59: 0 | CE59: 0
B60: zéro DH | C60: Zéro DH | D60: 0 | E60: 0 | F60: 0 | G60: 0 | H60: 0 | J60: 0 | K60: 0 | L60: 0 | M60: 0 | N60: 0 | O60: 0 | P60: 0 | Q60: 0 | R60: 0 | S60: 0 | T60: 0 | U60: 0 | V60: 0 | W60: 0 | AH60: zéro | AL60: DH | AR60: cents | AU60: 0 | AV60: cents | AY60: 0 | AZ60: cents | BV60: 0 | BZ60: 0 | CB60: 0 | CE60: 0
B61: zéro DH | C61: Zéro DH | D61: 0 | E61: 0 | F61: 0 | G61: 0 | H61: 0 | J61: 0 | K61: 0 | L61: 0 | M61: 0 | N61: 0 | O61: 0 | P61: 0 | Q61: 0 | R61: 0 | S61: 0 | T61: 0 | U61: 0 | V61: 0 | W61: 0 | AH61: zéro | AL61: DH | AR61: cents | AU61: 0 | AV61: cents | AY61: 0 | AZ61: cents | BV61: 0 | BZ61: 0 | CB61: 0 | CE61: 0
B62: zéro DH | C62: Zéro DH | D62: 0 | E62: 0 | F62: 0 | G62: 0 | H62: 0 | J62: 0 | K62: 0 | L62: 0 | M62: 0 | N62: 0 | O62: 0 | P62: 0 | Q62: 0 | R62: 0 | S62: 0 | T62: 0 | U62: 0 | V62: 0 | W62: 0 | AH62: zéro | AL62: DH | AR62: cents | AU62: 0 | AV62: cents | AY62: 0 | AZ62: cents | BV62: 0 | BZ62: 0 | CB62: 0 | CE62: 0
B63: zéro DH | C63: Zéro DH | D63: 0 | E63: 0 | F63: 0 | G63: 0 | H63: 0 | J63: 0 | K63: 0 | L63: 0 | M63: 0 | N63: 0 | O63: 0 | P63: 0 | Q63: 0 | R63: 0 | S63: 0 | T63: 0 | U63: 0 | V63: 0 | W63: 0 | AH63: zéro | AL63: DH | AR63: cents | AU63: 0 | AV63: cents | AY63: 0 | AZ63: cents | BV63: 0 | BZ63: 0 | CB63: 0 | CE63: 0
B64: zéro DH | C64: Zéro DH | D64: 0 | E64: 0 | F64: 0 | G64: 0 | H64: 0 | J64: 0 | K64: 0 | L64: 0 | M64: 0 | N64: 0 | O64: 0 | P64: 0 | Q64: 0 | R64: 0 | S64: 0 | T64: 0 | U64: 0 | V64: 0 | W64: 0 | AH64: zéro | AL64: DH | AR64: cents | AU64: 0 | AV64: cents | AY64: 0 | AZ64: cents | BV64: 0 | BZ64: 0 | CB64: 0 | CE64: 0
B65: zéro DH | C65: Zéro DH | D65: 0 | E65: 0 | F65: 0 | G65: 0 | H65: 0 | J65: 0 | K65: 0 | L65: 0 | M65: 0 | N65: 0 | O65: 0 | P65: 0 | Q65: 0 | R65: 0 | S65: 0 | T65: 0 | U65: 0 | V65: 0 | W65: 0 | AH65: zéro | AL65: DH | AR65: cents | AU65: 0 | AV65: cents | AY65: 0 | AZ65: cents | BV65: 0 | BZ65: 0 | CB65: 0 | CE65: 0
B66: zéro DH | C66: =UPPER(MID(B66,1,1))&MID(B66,2,168) -> Zéro DH | D66: =INT(A66/1000000) -> 0 | E66: =INT((A66-D66*1000000)/1000) -> 0 | F66: =INT(A66-D66*1000000-E66*1000) -> 0 | G66: =ROUND(A66-D66*1000000-E66*1000-F66,2)*100 -> 0 | H66: =D66-M66*100 -> 0 | J66: =E66-P66*100 -> 0 | K66: =ROUND(F66-S66*100,0) -> 0 | L66: =G66 -> 0 | M66: =INT(D66/100) -> 0 | N66: =INT((D66-M66*100)/10) -> 0 | O66: =D66-M66*100-N66*10 -> 0 | P66: =INT(E66/100) -> 0 | Q66: =INT((E66-P66*100)/10) -> 0 | R66: =E66-P66*100-Q66*10 -> 0 | S66: =INT(F66/100) -> 0 | T66: =INT((F66-S66*100)/10) -> 0 | U66: =F66-S66*100-T66*10 -> 0 | V66: =INT(G66/10) -> 0 | W66: =ROUND(G66-V66*10,0) -> 0 | X66: =IF(M66=0,"",IF(M66=1,"",IF(M66=2,"deux ",IF(M66=3,"trois ",IF(M66=4,"quatre ",IF(M66=5,"cinq ",AQ66)))))) ->  | Y66: =IF(M66=0,"",IF(M66<2,"cent ",AR66)) ->  | Z66: =IF(N66=1,AS66,IF(N66=7,BM66,IF(N66=9,CC66,CL66))) ->  | AA66: =IF(H66=11,"",IF(H66=12,"",IF(H66=13,"",IF(H66=14,"",IF(H66=15,"",IF(H66=16,"",AT66)))))) ->  | AB66: =IF(D66=0,"",IF(D66<2,"million ","millions ")) ->  | AC66: =IF(I66=1,"",IF(P66=0,"",IF(P66=1,"",IF(P66=2,"deux ",IF(P66=3,"trois ",IF(P66=4,"quatre ",IF(P66=5,"cinq ",AU66))))))) ->  | AD66: =IF(P66=0,"",IF(P66<2,"cent ",AV66)) ->  | AE66: =IF(Q66=1,AW66,IF(Q66=7,BO66,IF(Q66=9,CD66,CM66))) ->  | AF66: =IF(E66=1,"",AX66) ->  | AG66: =IF(E66>0,"mille ","") ->  | AH66: =IF(INT(A66)=0,"zéro ",IF(S66=0,"",IF(S66=1,"",IF(S66=2,"deux ",IF(S66=3,"trois ",IF(S66=4,"quatre ",IF(S66=5,"cinq ",AY66))))))) -> zéro | AI66: =IF(S66=0,"",IF(S66<2,"cent ",AZ66)) ->  | AJ66: =IF(T66=1,BA66,IF(T66=7,BQ66,IF(T66=9,CF66,CN66))) ->  | AK66: =IF(K66=11,"",IF(K66=12,"",IF(K66=13,"",IF(K66=14,"",IF(K66=15,"",IF(K66=16,"",BB66)))))) ->  | AL66: =IF(INT(A66<2),"DH ","DH") -> DH | AM66: =IF(G66>0," et ","") ->  | AN66: =IF(V66=1,BC66,IF(V66=7,BS66,IF(V66=9,CG66,CO66))) ->  | AO66: =IF(L66=11,"",IF(L66=12,"",IF(L66=13,"",IF(L66=14,"",IF(L66=15,"",IF(L66=16,"",BD66)))))) ->  | AP66: =IF(G66=0,"",IF(G66<2,"centime","centimes")) ->  | AQ66: =IF(D66=0," ",IF(M66=6,"six ",IF(M66=7,"sept ",IF(M66=8,"huit ",IF(M66=9,"neuf ",))))) ->  | AR66: =IF(H66>0,"cent ", "cents ") -> cents | AS66: =IF(H66=10,"dix ",IF(H66=11,"onze ",IF(H66=12,"douze ",IF(H66=13,"treize ",IF(H66=14,"quatorze ",IF(H66=15,"quinze ",BE66)))))) ->  | AT66: =IF(H66=17,"",IF(H66=18,"",IF(H66=19,"",BF66))) ->  | AU66: =IF(P66=6,"six ",IF(P66=7,"sept ",IF(P66=8,"huit ",IF(P66=9,"neuf ",)))) -> 0 | AV66: =IF(J66>0,"cent ", "cents ") -> cents | AW66: =IF(J66=10,"dix ",IF(J66=11,"onze ",IF(J66=12,"douze ",IF(J66=13,"treize ",IF(J66=14,"quatorze ",IF(J66=15,"quinze ",BG66)))))) ->  | AX66: =IF(J66=11,"",IF(J66=12,"",IF(J66=13,"",IF(J66=14,"",IF(J66=15,"",IF(J66=16,"",BH66)))))) ->  | AY66: =IF(S66=6,"six ",IF(S66=7,"sept ",IF(S66=8,"huit ",IF(S66=9,"neuf ",)))) -> 0 | AZ66: =IF(K66>0,"cent ", "cents ") -> cents | BA66: =IF(K66=10,"dix ",IF(K66=11,"onze ",IF(K66=12,"douze ",IF(K66=13,"treize ",IF(K66=14,"quatorze ",IF(K66=15,"quinze ",BI66)))))) ->  | BB66: =IF(K66=17,"",IF(K66=18,"",IF(K66=19,"",BJ66))) ->  | BC66: =IF(L66=10,"dix ",IF(L66=11,"onze ",IF(L66=12,"douze ",IF(L66=13,"treize ",IF(L66=14,"quatorze ",IF(L66=15,"quinze ",BK66)))))) ->  | BD66: =IF(L66=17,"",IF(L66=18,"",IF(L66=19,"",BL66))) ->  | BE66: =IF(H66=16,"seize ",IF(H66=17,"dix-sept ",IF(H66=18,"dix-huit ",IF(H66=19,"dix-neuf ",BM66)))) ->  | BF66: =IF(H66=21,"et un ",IF(H66=31,"et un ",IF(H66=41,"et un ",IF(H66=51,"et un ",IF(H66=61,"et un ",BN66))))) ->  | BG66: =IF(J66=16,"seize ",IF(J66=17,"dix-sept ",IF(J66=18,"dix-huit ",IF(J66=19,"dix-neuf ",BO66)))) ->  | BH66: =IF(J66=17,"",IF(J66=18,"",IF(J66=19,"",BP66))) ->  | BI66: =IF(K66=16,"seize ",IF(K66=17,"dix-sept ",IF(K66=18,"dix-huit ",IF(K66=19,"dix-neuf ",BQ66)))) ->  | BJ66: =IF(K66=21,"et un ",IF(K66=31,"et un ",IF(K66=41,"et un ",IF(K66=51,"et un ",IF(K66=61,"et un ",BR66))))) ->  | BK66: =IF(L66=16,"seize ",IF(L66=17,"dix-sept ",IF(L66=18,"dix-huit ",IF(L66=19,"dix-neuf ",BS66)))) ->  | BL66: =IF(L66=21,"et un ",IF(L66=31,"et un ",IF(L66=41,"et un ",IF(L66=51,"et un ",IF(L66=61,"et un ",BT66))))) ->  | BM66: =IF(H66=70,"soixante-dix ",IF(H66=71,"soixante et onze ",IF(H66=72,"soixante-douze ",IF(H66=73,"soixante-treize ",IF(H66=74,"soixante-quatorze ",IF(H66=75,"soixante-quinze ",BU66)))))) ->  | BN66: =IF(N66=9,"",IF(N66=7,"",IF(O66=0,"",IF(O66=1,"un ",IF(O66=2,"deux ",IF(O66=3,"trois ",IF(O66=4,"quatre ",IF(O66=5,"cinq ",BV66)))))))) ->  | BO66: =IF(J66=70,"soixante-dix ",IF(J66=71,"soixante et onze ",IF(J66=72,"soixante-douze ",IF(J66=73,"soixante-treize ",IF(J66=74,"soixante-quatorze ",IF(J66=75,"soixante-quinze ",BW66)))))) ->  | BP66: =IF(J66=21,"et un ",IF(J66=31,"et un ",IF(J66=41,"et un ",IF(J66=51,"et un ",IF(J66=61,"et un ",BX66))))) ->  | BQ66: =IF(K66=70,"soixante-dix ",IF(K66=71,"soixante et onze ",IF(K66=72,"soixante-douze ",IF(K66=73,"soixante-treize ",IF(K66=74,"soixante-quatorze ",IF(K66=75,"soixante-quinze ",BY66)))))) ->  | BR66: =IF(T66=9,"",IF(T66=7,"",IF(U66=0,"",IF(U66=1,"un ",IF(U66=2,"deux ",IF(U66=3,"trois ",IF(U66=4,"quatre ",IF(U66=5,"cinq ",BZ66)))))))) ->  | BS66: =IF(L66=70,"soixante-dix ",IF(L66=71,"soixante et onze ",IF(L66=72,"soixante-douze ",IF(L66=73,"soixante-treize ",IF(L66=74,"soixante-quatorze ",IF(L66=75,"soixante-quinze ",CA66)))))) ->  | BT66: =IF(V66=9,"",IF(V66=7,"",IF(W66=0,"",IF(W66=1,"un ",IF(W66=2,"deux ",IF(W66=3,"trois ",IF(W66=4,"quatre ",IF(W66=5,"cinq ",CB66)))))))) ->  | BU66: =IF(H66=76,"soixante-seize ",IF(H66=77,"soixante-dix-sept ",IF(H66=78,"soixante-dix-huit ",IF(H66=79,"soixante-dix-neuf ",CC66)))) ->  | BV66: =IF(N66=9,"",IF(O66=6,"six ",IF(O66=7,"sept ",IF(O66=8,"huit ",IF(O66=9,"neuf ",))))) -> 0 | BW66: =IF(J66=76,"soixante-seize ",IF(J66=77,"soixante-dix-sept ",IF(J66=78,"soixante-dix-huit ",IF(J66=79,"soixante-dix-neuf ",CD66)))) ->  | BX66: =IF(Q66=9,"",IF(Q66=7,"",IF(R66=0,"",IF(R66=1,"un ",IF(R66=2,"deux ",IF(R66=3,"trois ",IF(R66=4,"quatre ",IF(R66=5,"cinq ",CE66)))))))) ->  | BY66: =IF(K66=76,"soixante-seize ",IF(K66=77,"soixante-dix-sept ",IF(K66=78,"soixante-dix-huit ",IF(K66=79,"soixante-dix-neuf ",CF66)))) ->  | BZ66: =IF(T66=9,"",IF(U66=6,"six ",IF(U66=7,"sept ",IF(U66=8,"huit ",IF(U66=9,"neuf ",))))) -> 0 | CA66: =IF(L66=76,"soixante-seize ",IF(L66=77,"soixante-dix-sept ",IF(L66=78,"soixante-dix-huit ",IF(L66=79,"soixante-dix-neuf ",CG66)))) ->  | CB66: =IF(V66=9,"",IF(W66=6,"six ",IF(W66=7,"sept ",IF(W66=8,"huit ",IF(W66=9,"neuf ",))))) -> 0 | CC66: =IF(H66=90,"quatre-vingt-dix ",IF(H66=91,"quatre-vingt-onze ",IF(H66=92,"quatre-vingt-douze ",IF(H66=93,"quatre-vingt-treize ",IF(H66=94,"quatre-vingt-quatorze ",IF(H66=95,"quatre-vingt-quinze ",CH66)))))) ->  | CD66: =IF(J66=90,"quatre-vingt-dix ",IF(J66=91,"quatre-vingt-onze ",IF(J66=92,"quatre-vingt-douze ",IF(J66=93,"quatre-vingt-treize ",IF(J66=94,"quatre-vingt-quatorze ",IF(J66=95,"quatre-vingt-quinze ",CI66)))))) ->  | CE66: =IF(Q66=9,"",IF(R66=6,"six ",IF(R66=7,"sept ",IF(R66=8,"huit ",IF(R66=9,"neuf ",))))) -> 0 | CF66: =IF(K66=90,"quatre-vingt-dix ",IF(K66=91,"quatre-vingt-onze ",IF(K66=92,"quatre-vingt-douze ",IF(K66=93,"quatre-vingt-treize ",IF(K66=94,"quatre-vingt-quatorze ",IF(K66=95,"quatre-vingt-quinze ",CJ66)))))) ->  | CH66: =IF(H66=96,"quatre-vingt-seize ",IF(H66=97,"quatre-vingt-dix-sept ",IF(H66=98,"quatre-vingt-dix-huit ",IF(H66=99,"quatre-vingt-dix-neuf ",CL66)))) ->  | CI66: =IF(J66=96,"quatre-vingt-seize ",IF(J66=97,"quatre-vingt-dix-sept ",IF(J66=98,"quatre-vingt-dix-huit ",IF(J66=99,"quatre-vingt-dix-neuf ",CM66)))) ->  | CL66: =IF(N66=2,"vingt ",IF(N66=3,"trente ",IF(N66=4,"quarante ",IF(N66=5,"cinquante ",CP66)))) ->  | CM66: =IF(Q66=2,"vingt ",IF(Q66=3,"trente ",IF(Q66=4,"quarante ",IF(Q66=5,"cinquante ",CQ66)))) ->  | CN66: =IF(T66=2,"vingt ",IF(T66=3,"trente ",IF(T66=4,"quarante ",IF(T66=5,"cinquante ",CR66)))) ->  | CO66: =IF(V66=2,"vingt ",IF(V66=3,"trente ",IF(V66=4,"quarante ",IF(V66=5,"cinquante ",CS66)))) ->  | CP66: =IF(N66=6,"soixante ",IF(H66=80,"quatre-vingts ",IF(N66=8,"quatre-vingt-",""))) ->  | CQ66: =IF(Q66=6,"soixante ",IF(J66=80,"quatre-vingts ",IF(Q66=8,"quatre-vingt-",""))) ->  | CR66: =IF(T66=6,"soixante ",IF(K66=80,"quatre-vingts ",IF(T66=8,"quatre-vingt-",""))) ->  | CS66: =IF(V66=6,"soixante ",IF(L66=80,"quatre-vingts ",IF(V66=8,"quatre-vingt-",""))) -> 
B67: =(X67&Y67&Z67&AA67&AB67&AC67&AD67&AE67&AF67&AG67&AH67&AI67&AJ67&AK67&AL67&AM67&AN67&AO67&AP67) -> zéro DH | C67: Zéro DH | D67: 0 | E67: 0 | F67: 0 | G67: 0 | H67: 0 | J67: 0 | K67: 0 | L67: 0 | M67: 0 | N67: 0 | O67: 0 | P67: 0 | Q67: 0 | R67: 0 | S67: 0 | T67: 0 | U67: 0 | V67: 0 | W67: 0 | AH67: zéro | AL67: DH | AR67: cents | AU67: 0 | AV67: cents | AY67: 0 | AZ67: cents | BV67: 0 | BZ67: 0 | CB67: 0 | CE67: 0
B68: zéro DH | C68: Zéro DH | D68: 0 | E68: 0 | F68: 0 | G68: 0 | H68: 0 | J68: 0 | K68: 0 | L68: 0 | M68: 0 | N68: 0 | O68: 0 | P68: 0 | Q68: 0 | R68: 0 | S68: 0 | T68: 0 | U68: 0 | V68: 0 | W68: 0 | AH68: zéro | AL68: DH | AR68: cents | AU68: 0 | AV68: cents | AY68: 0 | AZ68: cents | BV68: 0 | BZ68: 0 | CB68: 0 | CE68: 0
B69: zéro DH | C69: Zéro DH | D69: 0 | E69: 0 | F69: 0 | G69: 0 | H69: 0 | J69: 0 | K69: 0 | L69: 0 | M69: 0 | N69: 0 | O69: 0 | P69: 0 | Q69: 0 | R69: 0 | S69: 0 | T69: 0 | U69: 0 | V69: 0 | W69: 0 | AH69: zéro | AL69: DH | AR69: cents | AU69: 0 | AV69: cents | AY69: 0 | AZ69: cents | BV69: 0 | BZ69: 0 | CB69: 0 | CE69: 0
B70: zéro DH | C70: Zéro DH | D70: 0 | E70: 0 | F70: 0 | G70: 0 | H70: 0 | J70: 0 | K70: 0 | L70: 0 | M70: 0 | N70: 0 | O70: 0 | P70: 0 | Q70: 0 | R70: 0 | S70: 0 | T70: 0 | U70: 0 | V70: 0 | W70: 0 | AH70: zéro | AL70: DH | AR70: cents | AU70: 0 | AV70: cents | AY70: 0 | AZ70: cents | BV70: 0 | BZ70: 0 | CB70: 0 | CE70: 0
B71: zéro DH | C71: Zéro DH | D71: 0 | E71: 0 | F71: 0 | G71: 0 | H71: 0 | J71: 0 | K71: 0 | L71: 0 | M71: 0 | N71: 0 | O71: 0 | P71: 0 | Q71: 0 | R71: 0 | S71: 0 | T71: 0 | U71: 0 | V71: 0 | W71: 0 | AH71: zéro | AL71: DH | AR71: cents | AU71: 0 | AV71: cents | AY71: 0 | AZ71: cents | BV71: 0 | BZ71: 0 | CB71: 0 | CE71: 0
B72: zéro DH | C72: Zéro DH | D72: 0 | E72: 0 | F72: 0 | G72: 0 | H72: 0 | J72: 0 | K72: 0 | L72: 0 | M72: 0 | N72: 0 | O72: 0 | P72: 0 | Q72: 0 | R72: 0 | S72: 0 | T72: 0 | U72: 0 | V72: 0 | W72: 0 | AH72: zéro | AL72: DH | AR72: cents | AU72: 0 | AV72: cents | AY72: 0 | AZ72: cents | BV72: 0 | BZ72: 0 | CB72: 0 | CE72: 0
B73: zéro DH | C73: Zéro DH | D73: 0 | E73: 0 | F73: 0 | G73: 0 | H73: 0 | J73: 0 | K73: 0 | L73: 0 | M73: 0 | N73: 0 | O73: 0 | P73: 0 | Q73: 0 | R73: 0 | S73: 0 | T73: 0 | U73: 0 | V73: 0 | W73: 0 | AH73: zéro | AL73: DH | AR73: cents | AU73: 0 | AV73: cents | AY73: 0 | AZ73: cents | BV73: 0 | BZ73: 0 | CB73: 0 | CE73: 0
B74: zéro DH | C74: Zéro DH | D74: 0 | E74: 0 | F74: 0 | G74: 0 | H74: 0 | J74: 0 | K74: 0 | L74: 0 | M74: 0 | N74: 0 | O74: 0 | P74: 0 | Q74: 0 | R74: 0 | S74: 0 | T74: 0 | U74: 0 | V74: 0 | W74: 0 | AH74: zéro | AL74: DH | AR74: cents | AU74: 0 | AV74: cents | AY74: 0 | AZ74: cents | BV74: 0 | BZ74: 0 | CB74: 0 | CE74: 0
B75: zéro DH | C75: Zéro DH | D75: 0 | E75: 0 | F75: 0 | G75: 0 | H75: 0 | J75: 0 | K75: 0 | L75: 0 | M75: 0 | N75: 0 | O75: 0 | P75: 0 | Q75: 0 | R75: 0 | S75: 0 | T75: 0 | U75: 0 | V75: 0 | W75: 0 | AH75: zéro | AL75: DH | AR75: cents | AU75: 0 | AV75: cents | AY75: 0 | AZ75: cents | BV75: 0 | BZ75: 0 | CB75: 0 | CE75: 0
B76: zéro DH | C76: Zéro DH | D76: 0 | E76: 0 | F76: 0 | G76: 0 | H76: 0 | J76: 0 | K76: 0 | L76: 0 | M76: 0 | N76: 0 | O76: 0 | P76: 0 | Q76: 0 | R76: 0 | S76: 0 | T76: 0 | U76: 0 | V76: 0 | W76: 0 | AH76: zéro | AL76: DH | AR76: cents | AU76: 0 | AV76: cents | AY76: 0 | AZ76: cents | BV76: 0 | BZ76: 0 | CB76: 0 | CE76: 0
B77: zéro DH | C77: Zéro DH | D77: 0 | E77: 0 | F77: 0 | G77: 0 | H77: 0 | J77: 0 | K77: 0 | L77: 0 | M77: 0 | N77: 0 | O77: 0 | P77: 0 | Q77: 0 | R77: 0 | S77: 0 | T77: 0 | U77: 0 | V77: 0 | W77: 0 | AH77: zéro | AL77: DH | AR77: cents | AU77: 0 | AV77: cents | AY77: 0 | AZ77: cents | BV77: 0 | BZ77: 0 | CB77: 0 | CE77: 0
B78: zéro DH | C78: Zéro DH | D78: 0 | E78: 0 | F78: 0 | G78: 0 | H78: 0 | J78: 0 | K78: 0 | L78: 0 | M78: 0 | N78: 0 | O78: 0 | P78: 0 | Q78: 0 | R78: 0 | S78: 0 | T78: 0 | U78: 0 | V78: 0 | W78: 0 | AH78: zéro | AL78: DH | AR78: cents | AU78: 0 | AV78: cents | AY78: 0 | AZ78: cents | BV78: 0 | BZ78: 0 | CB78: 0 | CE78: 0
B79: zéro DH | C79: Zéro DH | D79: 0 | E79: 0 | F79: 0 | G79: 0 | H79: 0 | J79: 0 | K79: 0 | L79: 0 | M79: 0 | N79: 0 | O79: 0 | P79: 0 | Q79: 0 | R79: 0 | S79: 0 | T79: 0 | U79: 0 | V79: 0 | W79: 0 | AH79: zéro | AL79: DH | AR79: cents | AU79: 0 | AV79: cents | AY79: 0 | AZ79: cents | BV79: 0 | BZ79: 0 | CB79: 0 | CE79: 0
B80: zéro DH | C80: Zéro DH | D80: 0 | E80: 0 | F80: 0 | G80: 0 | H80: 0 | J80: 0 | K80: 0 | L80: 0 | M80: 0 | N80: 0 | O80: 0 | P80: 0 | Q80: 0 | R80: 0 | S80: 0 | T80: 0 | U80: 0 | V80: 0 | W80: 0 | AH80: zéro | AL80: DH | AR80: cents | AU80: 0 | AV80: cents | AY80: 0 | AZ80: cents | BV80: 0 | BZ80: 0 | CB80: 0 | CE80: 0
B81: zéro DH | C81: Zéro DH | D81: 0 | E81: 0 | F81: 0 | G81: 0 | H81: 0 | J81: 0 | K81: 0 | L81: 0 | M81: 0 | N81: 0 | O81: 0 | P81: 0 | Q81: 0 | R81: 0 | S81: 0 | T81: 0 | U81: 0 | V81: 0 | W81: 0 | AH81: zéro | AL81: DH | AR81: cents | AU81: 0 | AV81: cents | AY81: 0 | AZ81: cents | BV81: 0 | BZ81: 0 | CB81: 0 | CE81: 0
B82: zéro DH | C82: Zéro DH | D82: 0 | E82: 0 | F82: 0 | G82: 0 | H82: 0 | J82: 0 | K82: 0 | L82: 0 | M82: 0 | N82: 0 | O82: 0 | P82: 0 | Q82: 0 | R82: 0 | S82: 0 | T82: 0 | U82: 0 | V82: 0 | W82: 0 | AH82: zéro | AL82: DH | AR82: cents | AU82: 0 | AV82: cents | AY82: 0 | AZ82: cents | BV82: 0 | BZ82: 0 | CB82: 0 | CE82: 0
B83: zéro DH | C83: Zéro DH | D83: 0 | E83: 0 | F83: 0 | G83: 0 | H83: 0 | J83: 0 | K83: 0 | L83: 0 | M83: 0 | N83: 0 | O83: 0 | P83: 0 | Q83: 0 | R83: 0 | S83: 0 | T83: 0 | U83: 0 | V83: 0 | W83: 0 | AH83: zéro | AL83: DH | AR83: cents | AU83: 0 | AV83: cents | AY83: 0 | AZ83: cents | BV83: 0 | BZ83: 0 | CB83: 0 | CE83: 0
B84: zéro DH | C84: Zéro DH | D84: 0 | E84: 0 | F84: 0 | G84: 0 | H84: 0 | J84: 0 | K84: 0 | L84: 0 | M84: 0 | N84: 0 | O84: 0 | P84: 0 | Q84: 0 | R84: 0 | S84: 0 | T84: 0 | U84: 0 | V84: 0 | W84: 0 | AH84: zéro | AL84: DH | AR84: cents | AU84: 0 | AV84: cents | AY84: 0 | AZ84: cents | BV84: 0 | BZ84: 0 | CB84: 0 | CE84: 0
B85: zéro DH | C85: Zéro DH | D85: 0 | E85: 0 | F85: 0 | G85: 0 | H85: 0 | J85: 0 | K85: 0 | L85: 0 | M85: 0 | N85: 0 | O85: 0 | P85: 0 | Q85: 0 | R85: 0 | S85: 0 | T85: 0 | U85: 0 | V85: 0 | W85: 0 | AH85: zéro | AL85: DH | AR85: cents | AU85: 0 | AV85: cents | AY85: 0 | AZ85: cents | BV85: 0 | BZ85: 0 | CB85: 0 | CE85: 0
B86: zéro DH | C86: Zéro DH | D86: 0 | E86: 0 | F86: 0 | G86: 0 | H86: 0 | J86: 0 | K86: 0 | L86: 0 | M86: 0 | N86: 0 | O86: 0 | P86: 0 | Q86: 0 | R86: 0 | S86: 0 | T86: 0 | U86: 0 | V86: 0 | W86: 0 | AH86: zéro | AL86: DH | AR86: cents | AU86: 0 | AV86: cents | AY86: 0 | AZ86: cents | BV86: 0 | BZ86: 0 | CB86: 0 | CE86: 0
B87: zéro DH | C87: Zéro DH | D87: 0 | E87: 0 | F87: 0 | G87: 0 | H87: 0 | J87: 0 | K87: 0 | L87: 0 | M87: 0 | N87: 0 | O87: 0 | P87: 0 | Q87: 0 | R87: 0 | S87: 0 | T87: 0 | U87: 0 | V87: 0 | W87: 0 | AH87: zéro | AL87: DH | AR87: cents | AU87: 0 | AV87: cents | AY87: 0 | AZ87: cents | BV87: 0 | BZ87: 0 | CB87: 0 | CE87: 0
B88: zéro DH | C88: Zéro DH | D88: 0 | E88: 0 | F88: 0 | G88: 0 | H88: 0 | J88: 0 | K88: 0 | L88: 0 | M88: 0 | N88: 0 | O88: 0 | P88: 0 | Q88: 0 | R88: 0 | S88: 0 | T88: 0 | U88: 0 | V88: 0 | W88: 0 | AH88: zéro | AL88: DH | AR88: cents | AU88: 0 | AV88: cents | AY88: 0 | AZ88: cents | BV88: 0 | BZ88: 0 | CB88: 0 | CE88: 0
B89: zéro DH | C89: Zéro DH | D89: 0 | E89: 0 | F89: 0 | G89: 0 | H89: 0 | J89: 0 | K89: 0 | L89: 0 | M89: 0 | N89: 0 | O89: 0 | P89: 0 | Q89: 0 | R89: 0 | S89: 0 | T89: 0 | U89: 0 | V89: 0 | W89: 0 | AH89: zéro | AL89: DH | AR89: cents | AU89: 0 | AV89: cents | AY89: 0 | AZ89: cents | BV89: 0 | BZ89: 0 | CB89: 0 | CE89: 0
B90: zéro DH | C90: Zéro DH | D90: 0 | E90: 0 | F90: 0 | G90: 0 | H90: 0 | J90: 0 | K90: 0 | L90: 0 | M90: 0 | N90: 0 | O90: 0 | P90: 0 | Q90: 0 | R90: 0 | S90: 0 | T90: 0 | U90: 0 | V90: 0 | W90: 0 | AH90: zéro | AL90: DH | AR90: cents | AU90: 0 | AV90: cents | AY90: 0 | AZ90: cents | BV90: 0 | BZ90: 0 | CB90: 0 | CE90: 0
B91: zéro DH | C91: Zéro DH | D91: 0 | E91: 0 | F91: 0 | G91: 0 | H91: 0 | J91: 0 | K91: 0 | L91: 0 | M91: 0 | N91: 0 | O91: 0 | P91: 0 | Q91: 0 | R91: 0 | S91: 0 | T91: 0 | U91: 0 | V91: 0 | W91: 0 | AH91: zéro | AL91: DH | AR91: cents | AU91: 0 | AV91: cents | AY91: 0 | AZ91: cents | BV91: 0 | BZ91: 0 | CB91: 0 | CE91: 0
B92: zéro DH | C92: Zéro DH | D92: 0 | E92: 0 | F92: 0 | G92: 0 | H92: 0 | J92: 0 | K92: 0 | L92: 0 | M92: 0 | N92: 0 | O92: 0 | P92: 0 | Q92: 0 | R92: 0 | S92: 0 | T92: 0 | U92: 0 | V92: 0 | W92: 0 | AH92: zéro | AL92: DH | AR92: cents | AU92: 0 | AV92: cents | AY92: 0 | AZ92: cents | BV92: 0 | BZ92: 0 | CB92: 0 | CE92: 0
B93: zéro DH | C93: Zéro DH | D93: 0 | E93: 0 | F93: 0 | G93: 0 | H93: 0 | J93: 0 | K93: 0 | L93: 0 | M93: 0 | N93: 0 | O93: 0 | P93: 0 | Q93: 0 | R93: 0 | S93: 0 | T93: 0 | U93: 0 | V93: 0 | W93: 0 | AH93: zéro | AL93: DH | AR93: cents | AU93: 0 | AV93: cents | AY93: 0 | AZ93: cents | BV93: 0 | BZ93: 0 | CB93: 0 | CE93: 0
B94: zéro DH | C94: Zéro DH | D94: 0 | E94: 0 | F94: 0 | G94: 0 | H94: 0 | J94: 0 | K94: 0 | L94: 0 | M94: 0 | N94: 0 | O94: 0 | P94: 0 | Q94: 0 | R94: 0 | S94: 0 | T94: 0 | U94: 0 | V94: 0 | W94: 0 | AH94: zéro | AL94: DH | AR94: cents | AU94: 0 | AV94: cents | AY94: 0 | AZ94: cents | BV94: 0 | BZ94: 0 | CB94: 0 | CE94: 0
B95: zéro DH | C95: Zéro DH | D95: 0 | E95: 0 | F95: 0 | G95: 0 | H95: 0 | J95: 0 | K95: 0 | L95: 0 | M95: 0 | N95: 0 | O95: 0 | P95: 0 | Q95: 0 | R95: 0 | S95: 0 | T95: 0 | U95: 0 | V95: 0 | W95: 0 | AH95: zéro | AL95: DH | AR95: cents | AU95: 0 | AV95: cents | AY95: 0 | AZ95: cents | BV95: 0 | BZ95: 0 | CB95: 0 | CE95: 0
B96: zéro DH | C96: Zéro DH | D96: 0 | E96: 0 | F96: 0 | G96: 0 | H96: 0 | J96: 0 | K96: 0 | L96: 0 | M96: 0 | N96: 0 | O96: 0 | P96: 0 | Q96: 0 | R96: 0 | S96: 0 | T96: 0 | U96: 0 | V96: 0 | W96: 0 | AH96: zéro | AL96: DH | AR96: cents | AU96: 0 | AV96: cents | AY96: 0 | AZ96: cents | BV96: 0 | BZ96: 0 | CB96: 0 | CE96: 0
B97: zéro DH | C97: Zéro DH | D97: 0 | E97: 0 | F97: 0 | G97: 0 | H97: 0 | J97: 0 | K97: 0 | L97: 0 | M97: 0 | N97: 0 | O97: 0 | P97: 0 | Q97: 0 | R97: 0 | S97: 0 | T97: 0 | U97: 0 | V97: 0 | W97: 0 | AH97: zéro | AL97: DH | AR97: cents | AU97: 0 | AV97: cents | AY97: 0 | AZ97: cents | BV97: 0 | BZ97: 0 | CB97: 0 | CE97: 0
B98: zéro DH | C98: =UPPER(MID(B98,1,1))&MID(B98,2,168) -> Zéro DH | D98: 0 | E98: =INT((A98-D98*1000000)/1000) -> 0 | F98: =INT(A98-D98*1000000-E98*1000) -> 0 | G98: =ROUND(A98-D98*1000000-E98*1000-F98,2)*100 -> 0 | H98: 0 | J98: 0 | K98: 0 | L98: 0 | M98: 0 | N98: =INT((D98-M98*100)/10) -> 0 | O98: =D98-M98*100-N98*10 -> 0 | P98: 0 | Q98: =INT((E98-P98*100)/10) -> 0 | R98: =E98-P98*100-Q98*10 -> 0 | S98: 0 | T98: =INT((F98-S98*100)/10) -> 0 | U98: =F98-S98*100-T98*10 -> 0 | V98: 0 | W98: =ROUND(G98-V98*10,0) -> 0 | AH98: zéro | AL98: DH | AR98: cents | AU98: 0 | AV98: cents | AY98: 0 | AZ98: cents | BV98: 0 | BZ98: 0 | CB98: 0 | CE98: 0
B99: zéro DH | C99: =UPPER(MID(B99,1,1))&MID(B99,2,168) -> Zéro DH | D99: 0 | E99: =INT((A99-D99*1000000)/1000) -> 0 | F99: =INT(A99-D99*1000000-E99*1000) -> 0 | G99: =ROUND(A99-D99*1000000-E99*1000-F99,2)*100 -> 0 | H99: 0 | J99: 0 | K99: 0 | L99: 0 | M99: 0 | N99: =INT((D99-M99*100)/10) -> 0 | O99: =D99-M99*100-N99*10 -> 0 | P99: 0 | Q99: =INT((E99-P99*100)/10) -> 0 | R99: =E99-P99*100-Q99*10 -> 0 | S99: 0 | T99: =INT((F99-S99*100)/10) -> 0 | U99: =F99-S99*100-T99*10 -> 0 | V99: 0 | W99: =ROUND(G99-V99*10,0) -> 0 | AH99: zéro | AL99: DH | AR99: cents | AU99: 0 | AV99: cents | AY99: 0 | AZ99: cents | BV99: 0 | BZ99: 0 | CB99: 0 | CE99: 0
B100: zéro DH | C100: =UPPER(MID(B100,1,1))&MID(B100,2,168) -> Zéro DH | D100: 0 | E100: =INT((A100-D100*1000000)/1000) -> 0 | F100: =INT(A100-D100*1000000-E100*1000) -> 0 | G100: =ROUND(A100-D100*1000000-E100*1000-F100,2)*100 -> 0 | H100: 0 | J100: 0 | K100: 0 | L100: 0 | M100: 0 | N100: =INT((D100-M100*100)/10) -> 0 | O100: =D100-M100*100-N100*10 -> 0 | P100: 0 | Q100: =INT((E100-P100*100)/10) -> 0 | R100: =E100-P100*100-Q100*10 -> 0 | S100: 0 | T100: =INT((F100-S100*100)/10) -> 0 | U100: =F100-S100*100-T100*10 -> 0 | V100: 0 | W100: =ROUND(G100-V100*10,0) -> 0 | AH100: zéro | AL100: DH | AR100: cents | AU100: 0 | AV100: cents | AY100: 0 | AZ100: cents | BV100: 0 | BZ100: 0 | CB100: 0 | CE100: 0
B101: zéro DH | C101: =UPPER(MID(B101,1,1))&MID(B101,2,168) -> Zéro DH | D101: 0 | E101: =INT((A101-D101*1000000)/1000) -> 0 | F101: =INT(A101-D101*1000000-E101*1000) -> 0 | G101: =ROUND(A101-D101*1000000-E101*1000-F101,2)*100 -> 0 | H101: 0 | J101: 0 | K101: 0 | L101: 0 | M101: 0 | N101: =INT((D101-M101*100)/10) -> 0 | O101: =D101-M101*100-N101*10 -> 0 | P101: 0 | Q101: =INT((E101-P101*100)/10) -> 0 | R101: =E101-P101*100-Q101*10 -> 0 | S101: 0 | T101: =INT((F101-S101*100)/10) -> 0 | U101: =F101-S101*100-T101*10 -> 0 | V101: 0 | W101: =ROUND(G101-V101*10,0) -> 0 | AH101: zéro | AL101: DH | AR101: cents | AU101: 0 | AV101: cents | AY101: 0 | AZ101: cents | BV101: 0 | BZ101: 0 | CB101: 0 | CE101: 0

Sheet RECU
A2: Modèle n° 9000 / F / R
AM11: Modèle n° ADP018F-16E
D13: Direction Régionale ou (inter) Préfectorale de : ………………………...….
D14: Subdivision de : ……………………………………………………………….
D15: Secteur : ………………………………………………………………………
A18: RECEPISSE DE DEPOT
A20: de la Déclaration Modèle ADP010F-16E
D22: IMPOT SUR LE REVENU
D25: DECLARATION DU REVENU GLOBAL
P27: Du | S27: 0 | T27: 1 | V27: 0 | W27: 1 | Y27: 1 | Z27: 5 | AA27: Au | AC27: 3 | AD27: 1 | AF27: 1 | AG27: 2 | AI27: 1 | AJ27: 5
E30: N° d'identification Fiscale : | V30: =+DONNES!C6 -> 80422222
E32: Identifiant Commun de l’Entreprise « ICE » : | AA32: /__/__/__/__/__/__/ /__/__/__/__/ /__/__/
E34: N° CNI ou carte de séjour : | V34: =+DONNES!C8 -> K6333333
E36: Nom et prénom (s) | Q36: : | S36: =+DONNES!C4 -> ABDO TEST
D39: Cadre réservé à l'administration
E42: Numéro d'enregistrement : | U42: /__/__/__/__/__/__/
AF43: (Cachet de l'administration)
E44: Date de dépôt : | Q44: /__/__/ /__/__/ /__/__/
E46: Nombre d'états : | Q46: /__/__/
E48: Nombre d'annexes : | S48: /__/__/
E50: Nombre de pièces justificatives : | W50: /__/__/
